Workbook

Sheet Introduction
A3: . . . . . . . . . . . . . . . . . . . . . . . . . . . . . . . . . . . . . . . . . . . . . . . . .
A5: Guidelines For Estimating
A6: ="Special Crop Production Costs - "&I11 -> Special Crop Production Costs - 2022
H11: Date: January, | I11: 2022
B17: The following budgets are estimates of the cost of producing selected special field crops in Manitoba. General Manitoba Agriculture and Resource Development recommendations are assumed in using fertilizers and chemical inputs. These figures provide an economic evaluation of the crops and estimated yields required to cover all costs. Costs include labour, investment and depreciation, but do not include management costs, nor do they necessarily represent the average cost of production in Manitoba.
B25: These budgets may be adjusted by putting in your own figures. As a producer you are encouraged to calculate your own costs of production for various crops. On each farm, costs and yields differ due to soil type, climate and agronomic practices.
B30: This tool is available as an Excel worksheet at:
B31: or at your nearest
B32: is also available to help
B33: determine machinery costs.
B40: The | G40: is also available for producers to
B41: estimate the cash cost of producing field crops on their farm on an annual basis. CropPlan calculates marginal returns, breakeven yields, breakeven crop prices on total production and remaining unsold inventory, land and machinery cost analysis and cash based finanical ratios.
B46: Note: This budget is only a guide and is not intended as an in depth study of the cost of production of this industry. Interpretation and use of this information is the responsibility of the user. If you need help with a budget, contact your nearest ARD and MASC Service Centre.

Sheet Summary
A1: =IF('Data (HIDE)'!B13="Manitoba","Special Crop Production Costs "&Introduction!I11&" Guidelines (Dollars Per Acre)","Special Crop Production Costs "&Introduction!I11&" Guidelines "&'Data (HIDE)'!B13&" (Dollars Per Acre)") -> Special Crop Production Costs 2022 Guidelines (Dollars Per Acre)
C2: ='Data (HIDE)'!$B$16 -> Black Bean | D2: ='Data (HIDE)'!$B$17 -> Hempseed | E2: ='Data (HIDE)'!$B$18 -> Kidney Bean | F2: ='Data (HIDE)'!$B$19 -> Fababean | G2: ='Data (HIDE)'!$B$20 -> Buckwheat | H2: ='Data (HIDE)'!$B$21 -> Canaryseed | I2: ='Data (HIDE)'!$B$22 -> Lentil | K2: Your Farm
A3: A. Operating Costs
B4: Seed & Treatment | C4: ='Data (HIDE)'!$L$16 -> 96.25 | D4: ='Data (HIDE)'!$L$17 -> 58.75 | E4: ='Data (HIDE)'!$L$18 -> 229.9 | F4: ='Data (HIDE)'!$L$19 -> 39.6 | G4: ='Data (HIDE)'!$L$20 -> 25 | H4: ='Data (HIDE)'!$L$21 -> 33 | I4: ='Data (HIDE)'!$L$22 -> 70
B5: Fertilizer | C5: ='Data (HIDE)'!$M$16 -> 103.1315311 | D5: ='Data (HIDE)'!$M$17 -> 103.1315311 | E5: ='Data (HIDE)'!$M$18 -> 103.1315311 | F5: ='Data (HIDE)'!$M$19 -> 49.81571167 | G5: ='Data (HIDE)'!$M$20 -> 55.55370262 | H5: ='Data (HIDE)'!$M$21 -> 89.24310549 | I5: ='Data (HIDE)'!$M$22 -> 25.62387037
B6: Pesticide | C6: ='Data (HIDE)'!$N$16+'Data (HIDE)'!$O$16+'Data (HIDE)'!$P$16 -> 117.52 | D6: ='Data (HIDE)'!$N$17++'Data (HIDE)'!$O$17+'Data (HIDE)'!$P$17 -> 47.54 | E6: ='Data (HIDE)'!$N$18+'Data (HIDE)'!$O$18+'Data (HIDE)'!$P$18 -> 117.52 | F6: ='Data (HIDE)'!$N$19+'Data (HIDE)'!$O$19+'Data (HIDE)'!$P$19 -> 15.5 | G6: ='Data (HIDE)'!$N$20+'Data (HIDE)'!$O$20+'Data (HIDE)'!$P$20 -> 6.13 | H6: ='Data (HIDE)'!$N$21+'Data (HIDE)'!$O$21+'Data (HIDE)'!$P$21 -> 28.17 | I6: ='Data (HIDE)'!$N$22+'Data (HIDE)'!$O$22+'Data (HIDE)'!$P$22 -> 29.38
B7: if delete it will affect crop rotation and fuel calcs
B8: if delete it will affect crop rotation and fuel calcs
B9: Fuel | C9: ='Data (HIDE)'!$Q$16 -> 23.88076442 | D9: ='Data (HIDE)'!$Q$17 -> 24.45356148 | E9: ='Data (HIDE)'!$Q$18 -> 23.31945305 | F9: ='Data (HIDE)'!$Q$19 -> 22.12838716 | G9: ='Data (HIDE)'!$Q$20 -> 21.00393411 | H9: ='Data (HIDE)'!$Q$21 -> 23.37513048 | I9: ='Data (HIDE)'!$Q$22 -> 19.92991763
B10: Machinery Operating & Lease | C10: ='Data (HIDE)'!$R$16+'Data (HIDE)'!$S$16+'Data (HIDE)'!$T$16 -> 22.88 | D10: ='Data (HIDE)'!$R$17+'Data (HIDE)'!$S$17+'Data (HIDE)'!$T$17 -> 22.88 | E10: ='Data (HIDE)'!$R$18+'Data (HIDE)'!$S$18+'Data (HIDE)'!$T$18 -> 22.88 | F10: ='Data (HIDE)'!$R$19+'Data (HIDE)'!$S$19+'Data (HIDE)'!$T$19 -> 22.88 | G10: ='Data (HIDE)'!$R$20+'Data (HIDE)'!$S$20+'Data (HIDE)'!$T$20 -> 22.88 | H10: ='Data (HIDE)'!$R$21+'Data (HIDE)'!$S$21+'Data (HIDE)'!$T$21 -> 22.88 | I10: ='Data (HIDE)'!$R$22+'Data (HIDE)'!$S$22+'Data (HIDE)'!$T$22 -> 22.88
B11: if delete it will affect crop rotation and fuel calcs
B12: if delete it will affect crop rotation and fuel calcs
B13: Labour - Hired | C13: ='Data (HIDE)'!$U$16 -> 5 | D13: ='Data (HIDE)'!$U$17 -> 5 | E13: ='Data (HIDE)'!$U$18 -> 5 | F13: ='Data (HIDE)'!$U$19 -> 5 | G13: ='Data (HIDE)'!$U$20 -> 5 | H13: ='Data (HIDE)'!$U$21 -> 5 | I13: ='Data (HIDE)'!$U$22 -> 5
B14: Crop Insurance | C14: ='Data (HIDE)'!$V$16 -> 33.5 | D14: ='Data (HIDE)'!$V$17 -> 36.75 | E14: ='Data (HIDE)'!$V$18 -> 48.25 | F14: ='Data (HIDE)'!$V$19 -> 36.75 | G14: ='Data (HIDE)'!$V$20 -> 19 | H14: ='Data (HIDE)'!$V$21 -> 24 | I14: ='Data (HIDE)'!$V$22 -> 17.25
B15: Hail Insurance | C15: ='Data (HIDE)'!$W$16 -> 16.5375 | D15: ='Data (HIDE)'!$W$17 -> 18.9 | E15: ='Data (HIDE)'!$W$18 -> 16.5375 | F15: ='Data (HIDE)'!$W$19 -> 16.5375 | G15: ='Data (HIDE)'!$W$20 -> 23.625 | H15: ='Data (HIDE)'!$W$21 -> 9.45 | I15: ='Data (HIDE)'!$W$22 -> 12.285
B16: Drying & Other Costs | C16: ='Data (HIDE)'!$X$16+'Data (HIDE)'!$AA$16 -> 17.75 | D16: ='Data (HIDE)'!$X$17+'Data (HIDE)'!$AA$17 -> 17.75 | E16: ='Data (HIDE)'!$X$18+'Data (HIDE)'!$AA$18 -> 17.75 | F16: ='Data (HIDE)'!$X$19+'Data (HIDE)'!$AA$19 -> 17.75 | G16: ='Data (HIDE)'!$X$20+'Data (HIDE)'!$AA$20 -> 17.75 | H16: ='Data (HIDE)'!$X$21+'Data (HIDE)'!$AA$21 -> 17.75 | I16: ='Data (HIDE)'!$X$22+'Data (HIDE)'!$AA$22 -> 17.75
B17: Land Taxes | C17: ='Data (HIDE)'!$Y$16 -> 17.5 | D17: ='Data (HIDE)'!$Y$17 -> 17.5 | E17: ='Data (HIDE)'!$Y$18 -> 17.5 | F17: ='Data (HIDE)'!$Y$19 -> 17.5 | G17: ='Data (HIDE)'!$Y$20 -> 17.5 | H17: ='Data (HIDE)'!$Y$21 -> 17.5 | I17: ='Data (HIDE)'!$Y$22 -> 17.5
B18: if delete it will affect crop rotation and fuel calcs
B19: Storage Costs | C19: ='Data (HIDE)'!$Z$16 -> 4.623808518 | D19: ='Data (HIDE)'!$Z$17 -> 2.781702986 | E19: ='Data (HIDE)'!$Z$18 -> 3.807842309 | F19: ='Data (HIDE)'!$Z$19 -> 6.255740936 | G19: ='Data (HIDE)'!$Z$20 -> 2.447898627 | H19: ='Data (HIDE)'!$Z$21 -> 5.058990496 | I19: ='Data (HIDE)'!$Z$22 -> 3.059873284
B20: Interest on Operating | C20: ='Data (HIDE)'!$AB$16 -> 11.46 | D20: ='Data (HIDE)'!$AB$17 -> 8.89 | E20: ='Data (HIDE)'!$AB$18 -> 15.14 | F20: ='Data (HIDE)'!$AB$19 -> 6.24 | G20: ='Data (HIDE)'!$AB$20 -> 5.4 | H20: ='Data (HIDE)'!$AB$21 -> 6.89 | I20: ='Data (HIDE)'!$AB$22 -> 6.02
B21: Total Operating | C21: =SUM(C4:C20) -> 470.0336041 | D21: 364.3267956 | E21: 620.7363265 | F21: 255.9573398 | G21: 221.2905354 | H21: 282.3172265 | I21: 246.6786613 | K21: =IF(SUM(K4:K20)=0,"",SUM(K4:K20)) -> 
A23: B. Fixed Costs
B24: Land Costs | C24: ='Fixed Cost Input'!$D$14 -> 78.187794 | D24: ='Fixed Cost Input'!$D$14 -> 78.187794 | E24: ='Fixed Cost Input'!$D$14 -> 78.187794 | F24: ='Fixed Cost Input'!$D$14 -> 78.187794 | G24: ='Fixed Cost Input'!$D$14 -> 78.187794 | H24: ='Fixed Cost Input'!$D$14 -> 78.187794 | I24: ='Fixed Cost Input'!$D$14 -> 78.187794
B25: Machinery Costs | C25: ='Data (HIDE)'!$AE$16 -> 76.17059425 | D25: ='Data (HIDE)'!$AE$17 -> 68.00945915 | E25: ='Data (HIDE)'!$AE$18 -> 76.17059425 | F25: ='Data (HIDE)'!$AE$19 -> 68.00945915 | G25: ='Data (HIDE)'!$AE$20 -> 68.00945915 | H25: ='Data (HIDE)'!$AE$21 -> 68.00945915 | I25: ='Data (HIDE)'!$AE$22 -> 68.00945915
B26: Total Fixed | C26: =SUM(C24:C25) -> 154.3583882 | D26: 146.1972531 | E26: 154.3583882 | F26: 146.1972531 | G26: 146.1972531 | H26: 146.1972531 | I26: 146.1972531 | K26: =IF(SUM(K24:K25)=0,"",SUM(K24:K25)) -> 
B27: if delete it will affect crop rotation and fuel calcs | K27: =IF(OR(K21="",K26=""),"",K21+K26) -> 
A29: C. Owners - Labour & Living | C29: ='Data (HIDE)'!$AH$16 -> 25 | D29: ='Data (HIDE)'!$AH$17 -> 25 | E29: ='Data (HIDE)'!$AH$18 -> 25 | F29: ='Data (HIDE)'!$AH$19 -> 25 | G29: ='Data (HIDE)'!$AH$20 -> 25 | H29: ='Data (HIDE)'!$AH$21 -> 25 | I29: ='Data (HIDE)'!$AH$22 -> 25
A31: Total Costs | C31: =+C26+C29+C21 -> 649.3919923 | D31: =+D26+D29+D21 -> 535.5240488 | E31: 800.0947147 | F31: 427.1545929 | G31: 392.4877885 | H31: 453.5144796 | I31: 417.8759144 | K31: =IF(OR(K21="",K26="",K29=""),"",SUM(K21+K26+K29)) -> 
C33: Profitability Analysis
A34: Estimated Farmgate
B35: Target Price $ per unit | C35: ='Data (HIDE)'!$E$16 -> 0.45 | D35: ='Data (HIDE)'!$E$17 -> 0.9 | E35: ='Data (HIDE)'!$E$18 -> 0.49 | F35: ='Data (HIDE)'!$E$19 -> 0.2 | G35: ='Data (HIDE)'!$E$20 -> 17.5 | H35: ='Data (HIDE)'!$E$21 -> 0.35 | I35: ='Data (HIDE)'!$E$22 -> 0.42 | Q35: ='Data (HIDE)'!$E$16 -> 0.45 | R35: ='Data (HIDE)'!$E$17 -> 0.9 | S35: ='Data (HIDE)'!$E$18 -> 0.49 | T35: ='Data (HIDE)'!$E$19 -> 0.2 | U35: ='Data (HIDE)'!$E$20 -> 17.5 | V35: ='Data (HIDE)'!$E$21 -> 0.35 | W35: ='Data (HIDE)'!$E$22 -> 0.42
B36: Premium $ per unit | C36: 0 | D36: 0 | E36: 0 | F36: 0 | G36: 0 | H36: 0 | I36: 0
B37: Target Yield per acre | C37: ='Data (HIDE)'!$C$16 -> 1700 | D37: ='Data (HIDE)'!$C$17 -> 750 | E37: ='Data (HIDE)'!$C$18 -> 1400 | F37: ='Data (HIDE)'!$C$19 -> 2300 | G37: ='Data (HIDE)'!$C$20 -> 15 | H37: ='Data (HIDE)'!$C$21 -> 1550 | I37: ='Data (HIDE)'!$C$22 -> 1125 | Q37: ='Data (HIDE)'!$C$16 -> 1700 | R37: ='Data (HIDE)'!$C$17 -> 750 | S37: ='Data (HIDE)'!$C$18 -> 1400 | T37: ='Data (HIDE)'!$C$19 -> 2300 | U37: ='Data (HIDE)'!$C$20 -> 15 | V37: ='Data (HIDE)'!$C$21 -> 1550 | W37: ='Data (HIDE)'!$C$22 -> 1125
B38: Unit type | C38: ='Data (HIDE)'!$D$16 -> lb | D38: ='Data (HIDE)'!$D$17 -> lb | E38: ='Data (HIDE)'!$D$18 -> lb | F38: ='Data (HIDE)'!$D$19 -> lb | G38: ='Data (HIDE)'!$D$20 -> bu | H38: ='Data (HIDE)'!$D$21 -> lb | I38: ='Data (HIDE)'!$D$22 -> lb
B39: Gross Revenue / acre | C39: =ROUND(((C35+C36)*C37),2) -> 765 | D39: 675 | E39: 686 | F39: 460 | G39: 262.5 | H39: 542.5 | I39: 472.5 | K39: =IF(OR(K35="",K37=""),"",ROUND(K35*K37,2)) -> 
B40: Revenue Ranking | C40: =RANK(C39,C39:I39) -> 1 | D40: =RANK(D39,C39:I39) -> 3 | E40: =RANK(E39,C39:I39) -> 2 | F40: =RANK(F39,C39:I39) -> 6 | G40: =RANK(G39,C39:I39) -> 7 | H40: =RANK(H39,C39:I39) -> 4 | I40: =RANK(I39,C39:I39) -> 5
B42: Operating Expense Ratio | C42: =SUM(C21/C39) -> 0.6144230119 | D42: 0.5397434009 | E42: 0.9048634497 | F42: 0.5564289995 | G42: 0.8430115632 | H42: 0.5204004175 | I42: 0.5220712408 | K42: =IF(OR(K21="",K39=""),"",K21/K39) -> 
A44: Marginal Returns
B45: Over Operating Costs | C45: =SUM(C39-C21) -> 294.9663959 | D45: 310.6732044 | E45: 65.2636735 | F45: 204.0426602 | G45: 41.20946465 | H45: 260.1827735 | I45: 225.8213387 | K45: =IF(OR(K21="",K39=""),"",K39-K21) -> 
B46: Over Operating & Fixed | C46: =SUM(C39-C27) -> 765 | D46: 675 | E46: 686 | F46: 460 | G46: 262.5 | H46: 542.5 | I46: 472.5
B47: Over Total Costs (Net Profit) | C47: =SUM(C39-C31) -> 115.6080077 | D47: 139.4759512 | E47: -114.0947147 | F47: 32.84540709 | G47: -129.9877885 | H47: 88.98552039 | I47: 54.62408557 | K47: =IF(OR(K31="",K39=""),"",K39-K31) -> 
B48: Profitability Ranking | C48: =RANK(C47,C47:I47) -> 2 | D48: =RANK(D47,C47:I47) -> 1 | E48: =RANK(E47,C47:I47) -> 6 | F48: =RANK(F47,C47:I47) -> 5 | G48: =RANK(G47,C47:I47) -> 7 | H48: =RANK(H47,C47:I47) -> 3 | I48: =RANK(I47,C47:I47) -> 4
A50: Return on Investment (ROI) | C50: =SUM((C39-C31)/C31) -> 0.1780249973 | D50: 0.2604475963 | E50: -0.1426015104 | F50: 0.07689348923 | G50: -0.331189383 | H50: 0.1962131848 | I50: 0.130718435
A51: Return on Asset (ROA) | C51: ='Data (HIDE)'!$AS$16 -> 0.06110262523 | D51: ='Data (HIDE)'!$AS$17 -> 0.06582656677 | E51: ='Data (HIDE)'!$AS$18 -> 0.003096887247 | F51: ='Data (HIDE)'!$AS$19 -> 0.03889966168 | G51: ='Data (HIDE)'!$AS$20 -> -0.00221983216 | H51: ='Data (HIDE)'!$AS$21 -> 0.05307645796 | I51: ='Data (HIDE)'!$AS$22 -> 0.04439932796
C53: Breakeven Analysis
A54: Breakeven Price Per Unit
B55: Over Operating Costs | C55: =SUM(Summary!C21/Summary!C37) -> 0.2764903553 | D55: =SUM(Summary!D21/Summary!D37) -> 0.4857690608 | E55: =SUM(Summary!E21/Summary!E37) -> 0.4433830904 | F55: =SUM(Summary!F21/Summary!F37) -> 0.1112857999 | G55: =SUM(Summary!G21/Summary!G37) -> 14.75270236 | H55: =SUM(Summary!H21/Summary!H37) -> 0.1821401461 | I55: =SUM(Summary!I21/Summary!I37) -> 0.2192699211
B56: Over Land Costs | C56: =SUM(Summary!C24/Summary!C37) -> 0.04599282 | D56: =SUM(Summary!D24/Summary!D37) -> 0.104250392 | E56: =SUM(Summary!E24/Summary!E37) -> 0.05584842428 | F56: =SUM(Summary!F24/Summary!F37) -> 0.03399469304 | G56: =SUM(Summary!G24/Summary!G37) -> 5.2125196 | H56: =SUM(Summary!H24/Summary!H37) -> 0.05044373806 | I56: =SUM(Summary!I24/Summary!I37) -> 0.06950026133
B57: Over Machinery Costs | C57: =SUM(Summary!C25/Summary!C37) -> 0.04480623191 | D57: =SUM(Summary!D25/Summary!D37) -> 0.09067927887 | E57: =SUM(Summary!E25/Summary!E37) -> 0.05440756732 | F57: =SUM(Summary!F25/Summary!F37) -> 0.02956933007 | G57: =SUM(Summary!G25/Summary!G37) -> 4.533963943 | H57: =SUM(Summary!H25/Summary!H37) -> 0.04387707042 | I57: =SUM(Summary!I25/Summary!I37) -> 0.06045285258
B58: Over Owners Labour & Lliving | C58: =SUM(Summary!C29/Summary!C37) -> 0.01470588235 | D58: =SUM(Summary!D29/Summary!D37) -> 0.03333333333 | E58: =SUM(Summary!E29/Summary!E37) -> 0.01785714286 | F58: =SUM(Summary!F29/Summary!F37) -> 0.01086956522 | G58: =SUM(Summary!G29/Summary!G37) -> 1.666666667 | H58: =SUM(Summary!H29/Summary!H37) -> 0.01612903226 | I58: =SUM(Summary!I29/Summary!I37) -> 0.02222222222
B59: Over Total Costs | C59: =SUM(C55:C58) -> 0.3819952896 | D59: =SUM(D55:D58) -> 0.714032065 | E59: 0.5714962248 | F59: 0.1857193882 | G59: 26.16585257 | H59: 0.2925899868 | I59: 0.3714452573
A60: Breakeven Yield (Bu or lb.)
B61: Over Operating Costs | C61: =ROUND(Summary!C21/Summary!C35,1) -> 1044.5 | D61: =ROUND(Summary!D21/Summary!D35,1) -> 404.8 | E61: =ROUND(Summary!E21/Summary!E35,1) -> 1266.8 | F61: =ROUND(Summary!F21/Summary!F35,1) -> 1279.8 | G61: =ROUND(Summary!G21/Summary!G35,1) -> 12.6 | H61: =ROUND(Summary!H21/Summary!H35,1) -> 806.6 | I61: =ROUND(Summary!I21/Summary!I35,1) -> 587.3
B62: Over Land Costs | C62: =ROUND(Summary!C24/Summary!C35,1) -> 173.8 | D62: =ROUND(Summary!D24/Summary!D35,1) -> 86.9 | E62: =ROUND(Summary!E24/Summary!E35,1) -> 159.6 | F62: =ROUND(Summary!F24/Summary!F35,1) -> 390.9 | G62: =ROUND(Summary!G24/Summary!G35,1) -> 4.5 | H62: =ROUND(Summary!H24/Summary!H35,1) -> 223.4 | I62: =ROUND(Summary!I24/Summary!I35,1) -> 186.2
B63: Over Machinery Costs | C63: =ROUND(Summary!C25/Summary!C35,1) -> 169.3 | D63: =ROUND(Summary!D25/Summary!D35,1) -> 75.6 | E63: =ROUND(Summary!E25/Summary!E35,1) -> 155.5 | F63: =ROUND(Summary!F25/Summary!F35,1) -> 340 | G63: =ROUND(Summary!G25/Summary!G35,1) -> 3.9 | H63: =ROUND(Summary!H25/Summary!H35,1) -> 194.3 | I63: =ROUND(Summary!I25/Summary!I35,1) -> 161.9
B64: Over Owners Labour & Lliving | C64: =ROUND(Summary!C29/Summary!C35,1) -> 55.6 | D64: =ROUND(Summary!D29/Summary!D35,1) -> 27.8 | E64: =ROUND(Summary!E29/Summary!E35,1) -> 51 | F64: =ROUND(Summary!F29/Summary!F35,1) -> 125 | G64: =ROUND(Summary!G29/Summary!G35,1) -> 1.4 | H64: =ROUND(Summary!H29/Summary!H35,1) -> 71.4 | I64: =ROUND(Summary!I29/Summary!I35,1) -> 59.5
B65: Over Total Costs | C65: =SUM(C61:C64) -> 1443.2 | D65: =SUM(D61:D64) -> 595.1 | E65: 1632.9 | F65: 2135.7 | G65: 22.4 | H65: 1295.7 | I65: 994.9
A66: Breakeven Yield Risk Ratio | C66: =SUM(Summary!C37/C65) -> 1.177937916 | D66: =SUM(Summary!D37/D65) -> 1.260292388 | E66: =SUM(Summary!E37/E65) -> 0.8573703227 | F66: =SUM(Summary!F37/F65) -> 1.07693028 | G66: =SUM(Summary!G37/G65) -> 0.6696428571 | H66: =SUM(Summary!H37/H65) -> 1.196264567 | I66: =SUM(Summary!I37/I65) -> 1.130766911
B67: (Target Yield per Acre / BE Yield)
B69: Note: This budget is only a guide and is not intended as an in depth study of the cost of production of this industry. Interpretation and utilization of this information is the responsibility of the user.

Sheet Risk Analysis
A1: =IF('Data (HIDE)'!B13="Manitoba","AgriInsurance Analysis","AgriInsurance Analysis - "&'Data (HIDE)'!B13) -> AgriInsurance Analysis
B3: ="*Based on "&'Data (HIDE)'!B45&"*" -> *Based on 2021 MASC data* | C3: ='Data (HIDE)'!$B$16 -> Black Bean | D3: ='Data (HIDE)'!$B$17 -> Hempseed | E3: ='Data (HIDE)'!$B$18 -> Kidney Bean | F3: ='Data (HIDE)'!$B$19 -> Fababean | G3: ='Data (HIDE)'!$B$20 -> Buckwheat | H3: ='Data (HIDE)'!$B$21 -> Canaryseed | I3: ='Data (HIDE)'!$B$22 -> Lentil | K3: Your Farm
A5: AgriInsurance
B6: ='Data (HIDE)'!B14 -> 80% Insured Value | C6: ='Data (HIDE)'!$AJ$16 -> 520 | D6: ='Data (HIDE)'!$AJ$17 -> 460 | E6: ='Data (HIDE)'!$AJ$18 -> 610 | F6: ='Data (HIDE)'!$AJ$19 -> 200 | G6: ='Data (HIDE)'!$AJ$20 -> 180 | H6: ='Data (HIDE)'!$AJ$21 -> 420 | I6: ='Data (HIDE)'!$AJ$22 -> 250
B7: Premium Cost (% of Insured) | C7: ='Data (HIDE)'!$AK$16 -> 0.06442307692 | D7: ='Data (HIDE)'!$AK$17 -> 0.07989130435 | E7: ='Data (HIDE)'!$AK$18 -> 0.07909836066 | F7: ='Data (HIDE)'!$AK$19 -> 0.18375 | G7: ='Data (HIDE)'!$AK$20 -> 0.1055555556 | H7: ='Data (HIDE)'!$AK$21 -> 0.05714285714 | I7: ='Data (HIDE)'!$AK$22 -> 0.069
A9: Costs Not Covered By AgriInsurance
B10: Operating Costs | C10: =IF(Summary!C21-C6<0,0,SUM(Summary!C21-C6)) -> 0 | D10: =IF(Summary!D21-D6<0,0,SUM(Summary!D21-D6)) -> 0 | E10: =IF(Summary!E21-E6<0,0,SUM(Summary!E21-E6)) -> 10.7363265 | F10: =IF(Summary!F21-F6<0,0,SUM(Summary!F21-F6)) -> 55.95733976 | G10: =IF(Summary!G21-G6<0,0,SUM(Summary!G21-G6)) -> 41.29053535 | H10: =IF(Summary!H21-H6<0,0,SUM(Summary!H21-H6)) -> 0 | I10: =IF(Summary!I21-I6<0,0,SUM(Summary!I21-I6)) -> 0
B11: Operating & Fixed Costs | C11: =IF(Summary!C27-C6<0,0,SUM(Summary!C27-C6)) -> 0 | D11: =IF(Summary!D27-D6<0,0,SUM(Summary!D27-D6)) -> 0 | E11: =IF(Summary!E27-E6<0,0,SUM(Summary!E27-E6)) -> 0 | F11: =IF(Summary!F27-F6<0,0,SUM(Summary!F27-F6)) -> 0 | G11: =IF(Summary!G27-G6<0,0,SUM(Summary!G27-G6)) -> 0 | H11: =IF(Summary!H27-H6<0,0,SUM(Summary!H27-H6)) -> 0 | I11: =IF(Summary!I27-I6<0,0,SUM(Summary!I27-I6)) -> 0
B12: Total Costs | C12: =IF(Summary!C31-C6<0,0,SUM(Summary!C31-C6)) -> 129.3919923 | D12: =IF(Summary!D31-D6<0,0,SUM(Summary!D31-D6)) -> 75.52404876 | E12: =IF(Summary!E31-E6<0,0,SUM(Summary!E31-E6)) -> 190.0947147 | F12: =IF(Summary!F31-F6<0,0,SUM(Summary!F31-F6)) -> 227.1545929 | G12: =IF(Summary!G31-G6<0,0,SUM(Summary!G31-G6)) -> 212.4877885 | H12: =IF(Summary!H31-H6<0,0,SUM(Summary!H31-H6)) -> 33.51447961 | I12: =IF(Summary!I31-I6<0,0,SUM(Summary!I31-I6)) -> 167.8759144
A14: AgriInsurance Risk Ratio | C14: (AgriInsurance Coverage / Cost)
B15: Operating Costs | C15: =SUM(C6/Summary!C21) -> 1.10630388 | D15: =SUM(D6/Summary!D21) -> 1.262602711 | E15: =SUM(E6/Summary!E21) -> 0.9827038856 | F15: =SUM(F6/Summary!F21) -> 0.7813802104 | G15: =SUM(G6/Summary!G21) -> 0.8134102966 | H15: =SUM(H6/Summary!H21) -> 1.487688177 | I15: =SUM(I6/Summary!I21) -> 1.013464232
B16: Total Costs | C16: =SUM(C6/Summary!C31) -> 0.8007490178 | D16: =SUM(D6/Summary!D31) -> 0.8589716952 | E16: =SUM(E6/Summary!E31) -> 0.7624097357 | F16: =SUM(F6/Summary!F31) -> 0.4682145605 | G16: =SUM(G6/Summary!G31) -> 0.4586129945 | H16: =SUM(H6/Summary!H31) -> 0.9261005301 | I16: =SUM(I6/Summary!I31) -> 0.5982637222
B18: Risk Ranking | C18: =RANK(C15,$C15:$I15,1) -> 5 | D18: 6 | E18: 3 | F18: 1 | G18: 2 | H18: 7 | I18: 4
B19: (Lower number indicates increasing risk)
A21: =IF('Data (HIDE)'!B13="Manitoba","Risk & Sensitivity Analysis (Stress Test)","Sensitivity Analysis (Stress Test) - "&'Data (HIDE)'!B13) -> Risk & Sensitivity Analysis (Stress Test)
A24: =#REF! ->  | C24: =Summary!C21 -> 470.0336041 | D24: =Summary!D21 -> 364.3267956 | E24: =Summary!E21 -> 620.7363265 | F24: =Summary!F21 -> 255.9573398 | G24: =Summary!G21 -> 221.2905354 | H24: =Summary!H21 -> 282.3172265 | I24: =Summary!I21 -> 246.6786613
A25: =#REF! ->  | C25: =Summary!C26 -> 154.3583882 | D25: =Summary!D26 -> 146.1972531 | E25: =Summary!E26 -> 154.3583882 | F25: =Summary!F26 -> 146.1972531 | G25: =Summary!G26 -> 146.1972531 | H25: =Summary!H26 -> 146.1972531 | I25: =Summary!I26 -> 146.1972531
A26: =#REF! ->  | C26: =Summary!C31 -> 649.3919923 | D26: =Summary!D31 -> 535.5240488 | E26: =Summary!E31 -> 800.0947147 | F26: =Summary!F31 -> 427.1545929 | G26: =Summary!G31 -> 392.4877885 | H26: =Summary!H31 -> 453.5144796 | I26: =Summary!I31 -> 417.8759144
A28: Estimated Farmgate
B29: Price $ per unit | C29: =Summary!C35 -> 0.45 | D29: =Summary!D35 -> 0.9 | E29: =Summary!E35 -> 0.49 | F29: =Summary!F35 -> 0.2 | G29: =Summary!G35 -> 17.5 | H29: =Summary!H35 -> 0.35 | I29: =Summary!I35 -> 0.42
B30: Yield per acre (bu or lb.) | C30: =Summary!C37 -> 1700 | D30: =Summary!D37 -> 750 | E30: =Summary!E37 -> 1400 | F30: =Summary!F37 -> 2300 | G30: =Summary!G37 -> 15 | H30: =Summary!H37 -> 1550 | I30: =Summary!I37 -> 1125
B31: Unit type | C31: =Summary!C38 -> lb | D31: =Summary!D38 -> lb | E31: =Summary!E38 -> lb | F31: =Summary!F38 -> lb | G31: =Summary!G38 -> bu | H31: =Summary!H38 -> lb | I31: =Summary!I38 -> lb
D33: Percent Market Price Change | E33: -0.2
D34: Percent Crop Yield Change | E34: -0.1
C37: ='Data (HIDE)'!$B$16 -> Black Bean | D37: ='Data (HIDE)'!$B$17 -> Hempseed | E37: ='Data (HIDE)'!$B$18 -> Kidney Bean | F37: ='Data (HIDE)'!$B$19 -> Fababean | G37: ='Data (HIDE)'!$B$20 -> Buckwheat | H37: ='Data (HIDE)'!$B$21 -> Canaryseed | I37: ='Data (HIDE)'!$B$22 -> Lentil | K37: Your Farm
B39: Market Price ($ per unit) | C39: =SUM(C29*(1+$E$33)) -> 0.36 | D39: 0.72 | E39: 0.392 | F39: 0.16 | G39: 14 | H39: 0.28 | I39: 0.336
B40: Yield (per acre) | C40: =ROUND(C30*(1+$E$34),0) -> 1530 | D40: 675 | E40: 1260 | F40: 2070 | G40: 14 | H40: 1395 | I40: 1013
A42: ="Stress Test Scenario = Market Price "&IF(E33<0,"Down","Up")&" "&ABS(E33*100)&"%, and Crop Yield "&IF(E34<0,"Down","Up")&" "&ABS(E34*100)&"%" -> Stress Test Scenario = Market Price Down 20%, and Crop Yield Down 10%
B43: Gross Revenue / acre | C43: =C39*C40 -> 550.8 | D43: 486 | E43: 493.92 | F43: 331.2 | G43: 196 | H43: 390.6 | I43: 340.368
B44: Marginal Returns
B45: Over Operating Costs | C45: =SUM(C43-C24) -> 80.76639592 | D45: 121.6732044 | E45: -126.8163265 | F45: 75.24266024 | G45: -25.29053535 | H45: 108.2827735 | I45: 93.68933872
B46: Over Operating & Fixed | C46: =SUM(C43-(C24+C25)) -> -73.59199233 | D46: -24.52404876 | E46: -281.1747147 | F46: -70.95459291 | G46: -171.4877885 | H46: -37.91447961 | I46: -52.50791443
B47: Over Total Costs (Net Profit) | C47: =SUM(C43-C26) -> -98.59199233 | D47: -49.52404876 | E47: -306.1747147 | F47: -95.95459291 | G47: -196.4877885 | H47: -62.91447961 | I47: -77.50791443
B48: Profitability Ranking | C48: =RANK(C47,C47:I47) -> 5 | D48: =RANK(D47,C47:I47) -> 1 | E48: =RANK(E47,C47:I47) -> 7 | F48: =RANK(F47,C47:I47) -> 4 | G48: =RANK(G47,C47:I47) -> 6 | H48: =RANK(H47,C47:I47) -> 2 | I48: =RANK(I47,C47:I47) -> 3
B50: Operating Expense Ratio | C50: =SUM(C24/C43) -> 0.8533652943 | D50: 0.7496436124 | E50: 1.256754791 | F50: 0.7728180548 | G50: 1.129033344 | H50: 0.7227783576 | I50: 0.7247410488
A52: Acreage Analysis
C54: ='Data (HIDE)'!$B$16 -> Black Bean | D54: ='Data (HIDE)'!$B$17 -> Hempseed | E54: ='Data (HIDE)'!$B$18 -> Kidney Bean | F54: ='Data (HIDE)'!$B$19 -> Fababean | G54: ='Data (HIDE)'!$B$20 -> Buckwheat | H54: ='Data (HIDE)'!$B$21 -> Canaryseed | I54: ='Data (HIDE)'!$B$22 -> Lentil | K54: Your Farm
A56: MASC Seeded Acreage
B57: 5 Year Average Acres | C57: ='Data (HIDE)'!$H$16 -> 25222.6 | D57: ='Data (HIDE)'!$H$17 -> 12974 | E57: ='Data (HIDE)'!$H$18 -> 10570.2 | F57: ='Data (HIDE)'!$H$19 -> 6828.4 | G57: ='Data (HIDE)'!$H$20 -> 5471.2 | H57: ='Data (HIDE)'!$H$21 -> 4227.8 | I57: ='Data (HIDE)'!$H$22 -> 1899.8
B58: Acre Ranking | C58: =RANK(C57,C57:I57) -> 1 | D58: =RANK(D57,C57:I57) -> 2 | E58: =RANK(E57,C57:I57) -> 3 | F58: =RANK(F57,C57:I57) -> 4 | G58: =RANK(G57,C57:I57) -> 5 | H58: =RANK(H57,C57:I57) -> 6 | I58: =RANK(I57,C57:I57) -> 7
B60: ='Data (HIDE)'!J15 -> 2021 Acres | C60: ='Data (HIDE)'!$J$16 -> 27846 | D60: ='Data (HIDE)'!$J$17 -> 6131 | E60: ='Data (HIDE)'!$J$18 -> 9454 | F60: ='Data (HIDE)'!$J$19 -> 5206 | G60: ='Data (HIDE)'!$J$20 -> 4416 | H60: ='Data (HIDE)'!$J$21 -> 6979 | I60: ='Data (HIDE)'!$J$22 -> 1070
B61: Acre Ranking | C61: =RANK(C60,C60:I60) -> 1 | D61: =RANK(D60,C60:I60) -> 4 | E61: =RANK(E60,C60:I60) -> 2 | F61: =RANK(F60,C60:I60) -> 5 | G61: =RANK(G60,C60:I60) -> 6 | H61: =RANK(H60,C60:I60) -> 3 | I61: =RANK(I60,C60:I60) -> 7
B64: Note: This budget is only a guide and is not intended as an in depth study of the cost of production of this industry. Interpretation and utilization of this information is the responsibility of the user.

Sheet Charts

Sheet Seed, Fertilizer & Chemical
A1: Seed & Treatment
D2: Seeding Rate | G2: Price | J2: Cost
A3: Crop | D3: per Acre | G3: per Unit | J3: per Acre
B4: Hempseed | D4: 25 | E4: lb | G4: 2.35 | H4: /lb | J4: =ROUND(D4*G4,2) -> 58.75
B5: Black Bean | D5: 1.25 | E5: unit | G5: 77 | H5: /unit | J5: 96.25
B6: Kidney Bean | D6: 1.1 | E6: unit | G6: 209 | H6: /unit | J6: 229.9
B7: Buckwheat | D7: 1 | E7: bu | G7: 25 | H7: /bu | J7: 25
B8: Canaryseed | D8: 44 | E8: lb | G8: 0.75 | H8: /lb | J8: 33
B9: Fababean | D9: 180 | E9: lb | G9: 0.22 | H9: /lb | J9: 39.6
B10: Lentil | D10: 2 | E10: bu | G10: 35 | H10: /bu | J10: 70
A12: Fertilizer
D13: Bulk Price | G13: Actual Nutrient | J13: Nitrogen | M13: Sulphur
A14: Fertilizer Type | D14: $/tonne | G14: $/lb | J14: Usage | M14: Usage
B15: Nitrogen: (urea) 46-0-0 | D15: 1090 | G15: =SUM(D15/(2204.5855*0.46)) -> 1.074834801 | J15: 0.75 | M15: -
B16: Nitrogen: (NH3) 82-0-0 | D16: 1330 | G16: =SUM(D16/(2204.5855*0.82)) -> 0.7357170858 | J16: 0.25 | M16: -
B17: Nitrogen: (liquid) 28-0-0 | D17: 640 | G17: =SUM(D17/(2204.5855*0.28)) -> 1.036800018 | J17: 0 | M17: -
B18: Phosphorus: 11-52-0 | D18: 1175 | G18: =SUM((D18-(G15*(0.11*2204.5855)))/(2204.5855*0.52)) -> 0.7975926559 | J18: - | M18: -
B19: Potash: 0-0-60 | D19: 835 | G19: =SUM(D19/(2204.5855*0.6)) -> 0.6312600109 | J19: - | M19: -
B20: Sulphur: 20.5-0-0-24 | D20: 640 | G20: =SUM((D20-(G15*(0.205*2204.5855)))/(2204.5855*0.24)) -> 0.2915119615 | J20: - | M20: 1
B21: MES S15: 13-33-0-15 | D21: 1100 | G21: =SUM((D21-(G15*(0.13*2204.5855))-(G18*(0.33*2204.5855)))/(2204.5855*0.15)) -> 0.64017272 | H21: 0 | J21: - | M21: 0
S22: ***HIDE***
C23: Amount of Actual Pounds of Elements Applied Per Acre | T23: 82-0-0 | X23: 28-0-0 | AD23: 46-0-0 | AH23: 11-52-0 | AK23: 0-0-60 | AN23: 20.5-0-0-24 | AQ23: 13-33-0-15
C24: Nitrogen | F24: Phosphorus | I24: Potash | L24: Sulphur | O24: Total | S24: preseed | T24: preseed | U24: preseed | V24: preseed | W24: suppl | X24: suppl | Y24: suppl | Z24: suppl | AA24: blend | AB24: blend | AC24: blend | AD24: blend | AE24: blend | AF24: blend | AG24: blend | AH24: blend | AI24: blend | AJ24: blend | AK24: blend | AL24: blend | AM24: blend | AN24: blend | AO24: blend | AP24: blend | AQ24: blend | AR24: blend | AS24: blend | AT24: N phos
A25: Crop | C25: lbs | D25: $/acre | F25: lbs | G25: $/acre | I25: lbs | J25: $/acre | L25: lbs | M25: $/acre | O25: $/acre | S25: N actual | T25: N lbs | U25: N MT | V25: N cost | W25: N actual | X25: N lbs | Y25: N MT | Z25: N cost | AA25: N phos | AB25: N sul1 | AC25: N sul2 | AD25: N urea | AE25: N lbs | AF25: N MT | AG25: N cost | AH25: phos lbs | AI25: phos MT | AJ25: phos cost | AK25: potash | AL25: pot MT | AM25: pot cost | AN25: sul 1 lbs | AO25: sul 1 MT | AP25: sul 1 cost | AQ25: sul 2 lbs | AR25: sul 2 MT | AS25: sul 2 cost | AT25: lbs
B26: ='Seed, Fertilizer & Chemical'!B4 -> Hempseed | C26: 80 | D26: =IF(SUM($J$15:$J$17)<>100%,"ERROR",SUM(V26+Z26+AG26)) -> 72.3828867 | F26: 30 | G26: =AJ26 -> 30.74864444 | I26: 0 | J26: =AM26 -> 0 | L26: 0 | M26: =IF(SUM($M$20:$M$21)<>100%,"ERROR",AP26+AS26) -> 0 | O26: =D26+G26+J26+M26 -> 103.1315311 | S26: =SUM(C26*$J$16) -> 20 | T26: =MAXA(0,(S26)/(0.82)) -> 24.3902439 | U26: =(T26)/2204.6 -> 0.01106334206 | V26: =SUM(U26*$D$16) -> 14.71424494 | W26: =SUM(C26*$J$17) -> 0 | X26: =MAXA(0,(W26)/(0.28)) -> 0 | Y26: =(X26)/2204.6 -> 0 | Z26: =SUM(Y26*$D$17) -> 0 | AA26: =SUM(AH26*0.11) -> 6.346153846 | AB26: =SUM(AN26*0.205) -> 0 | AC26: =SUM(AQ26*0.13) -> 0 | AD26: =SUM(C26-(AA26+AB26+AC26+W26+S26)) -> 53.65384615 | AE26: =MAXA(0,(AD26)/(0.46)) -> 116.638796 | AF26: =(AE26)/2204.6 -> 0.05290701079 | AG26: =SUM(AF26*$D$15) -> 57.66864176 | AH26: =MAXA(0,(F26-(AQ26*0.33))/0.52) -> 57.69230769 | AI26: =(AH26)/2204.6 -> 0.0261690591 | AJ26: =SUM(AI26*$D$18) -> 30.74864444 | AK26: =SUM(I26/0.6) -> 0 | AL26: =(AK26)/2204.6 -> 0 | AM26: =SUM(AL26*$D$19) -> 0 | AN26: =MAXA(0,SUM(L26*$M$20)/0.24) -> 0 | AO26: =(AN26)/2204.6 -> 0 | AP26: =SUM(AO26*$D$20) -> 0 | AQ26: =MAXA(0,SUM(L26*$M$21)/0.15) -> 0 | AR26: =(AQ26)/2204.6 -> 0 | AS26: =SUM(AR26*$D$21) -> 0
B27: ='Seed, Fertilizer & Chemical'!B5 -> Black Bean | C27: 80 | D27: =IF(SUM($J$15:$J$17)<>100%,"ERROR",SUM(V27+Z27+AG27)) -> 72.3828867 | F27: 30 | G27: =AJ27 -> 30.74864444 | I27: 0 | J27: =AM27 -> 0 | L27: 0 | M27: =IF(SUM($M$20:$M$21)<>100%,"ERROR",AP27+AS27) -> 0 | O27: 103.1315311 | S27: =SUM(C27*$J$16) -> 20 | T27: =MAXA(0,(S27)/(0.82)) -> 24.3902439 | U27: =(T27)/2204.6 -> 0.01106334206 | V27: =SUM(U27*$D$16) -> 14.71424494 | W27: =SUM(C27*$J$17) -> 0 | X27: =MAXA(0,(W27)/(0.28)) -> 0 | Y27: =(X27)/2204.6 -> 0 | Z27: =SUM(Y27*$D$17) -> 0 | AA27: =SUM(AH27*0.11) -> 6.346153846 | AB27: =SUM(AN27*0.205) -> 0 | AC27: =SUM(AQ27*0.13) -> 0 | AD27: =SUM(C27-(AA27+AB27+AC27+W27+S27)) -> 53.65384615 | AE27: =MAXA(0,(AD27)/(0.46)) -> 116.638796 | AF27: =(AE27)/2204.6 -> 0.05290701079 | AG27: =SUM(AF27*$D$15) -> 57.66864176 | AH27: =MAXA(0,(F27-(AQ27*0.33))/0.52) -> 57.69230769 | AI27: =(AH27)/2204.6 -> 0.0261690591 | AJ27: =SUM(AI27*$D$18) -> 30.74864444 | AK27: =SUM(I27/0.6) -> 0 | AL27: =(AK27)/2204.6 -> 0 | AM27: =SUM(AL27*$D$19) -> 0 | AN27: =MAXA(0,SUM(L27*$M$20)/0.24) -> 0 | AO27: =(AN27)/2204.6 -> 0 | AP27: =SUM(AO27*$D$20) -> 0 | AQ27: =MAXA(0,SUM(L27*$M$21)/0.15) -> 0 | AR27: =(AQ27)/2204.6 -> 0 | AS27: =SUM(AR27*$D$21) -> 0
B28: ='Seed, Fertilizer & Chemical'!B6 -> Kidney Bean | C28: 80 | D28: 72.3828867 | F28: 30 | G28: 30.74864444 | I28: 0 | J28: 0 | L28: 0 | M28: 0 | O28: 103.1315311 | S28: 20 | T28: 24.3902439 | U28: 0.01106334206 | V28: 14.71424494 | W28: 0 | X28: 0 | Y28: 0 | Z28: 0 | AA28: 6.346153846 | AB28: 0 | AC28: 0 | AD28: 53.65384615 | AE28: 116.638796 | AF28: 0.05290701079 | AG28: 57.66864176 | AH28: 57.69230769 | AI28: 0.0261690591 | AJ28: 30.74864444 | AK28: 0 | AL28: 0 | AM28: 0 | AN28: 0 | AO28: 0 | AP28: 0 | AQ28: 0 | AR28: 0 | AS28: 0
B29: ='Seed, Fertilizer & Chemical'!B7 -> Buckwheat | C29: 40 | D29: 35.05460633 | F29: 20 | G29: 20.4990963 | I29: 0 | J29: 0 | L29: 0 | M29: 0 | O29: 55.55370262 | S29: 10 | T29: 12.19512195 | U29: 0.005531671029 | V29: 7.357122469 | W29: 0 | X29: 0 | Y29: 0 | Z29: 0 | AA29: 4.230769231 | AB29: 0 | AC29: 0 | AD29: 25.76923077 | AE29: 56.02006689 | AF29: 0.02541053565 | AG29: 27.69748386 | AH29: 38.46153846 | AI29: 0.0174460394 | AJ29: 20.4990963 | AK29: 0 | AL29: 0 | AM29: 0 | AN29: 0 | AO29: 0 | AP29: 0 | AQ29: 0 | AR29: 0 | AS29: 0
B30: ='Seed, Fertilizer & Chemical'!B8 -> Canaryseed | C30: 70 | D30: 63.61923512 | F30: 25 | G30: 25.62387037 | I30: 0 | J30: 0 | L30: 0 | M30: 0 | O30: 89.24310549 | S30: 17.5 | T30: 21.34146341 | U30: 0.009680424301 | V30: 12.87496432 | W30: 0 | X30: 0 | Y30: 0 | Z30: 0 | AA30: 5.288461538 | AB30: 0 | AC30: 0 | AD30: 47.21153846 | AE30: 102.6337793 | AF30: 0.04655437688 | AG30: 50.7442708 | AH30: 48.07692308 | AI30: 0.02180754925 | AJ30: 25.62387037 | AK30: 0 | AL30: 0 | AM30: 0 | AN30: 0 | AO30: 0 | AP30: 0 | AQ30: 0 | AR30: 0 | AS30: 0
B31: ='Seed, Fertilizer & Chemical'!B9 -> Fababean | C31: 0 | D31: 0 | F31: 25 | G31: 25.62387037 | I31: 0 | J31: 0 | L31: 20 | M31: 24.1918413 | O31: 49.81571167 | S31: 0 | T31: 0 | U31: 0 | V31: 0 | W31: 0 | X31: 0 | Y31: 0 | Z31: 0 | AA31: 5.288461538 | AB31: 17.08333333 | AC31: 0 | AD31: -22.37179487 | AE31: 0 | AF31: 0 | AG31: 0 | AH31: 48.07692308 | AI31: 0.02180754925 | AJ31: 25.62387037 | AK31: 0 | AL31: 0 | AM31: 0 | AN31: 83.33333333 | AO31: 0.03779975203 | AP31: 24.1918413 | AQ31: 0 | AR31: 0 | AS31: 0
B32: ='Seed, Fertilizer & Chemical'!B10 -> Lentil | C32: 0 | D32: 0 | F32: 25 | G32: 25.62387037 | I32: 0 | J32: 0 | L32: 0 | M32: 0 | O32: 25.62387037 | S32: 0 | T32: 0 | U32: 0 | V32: 0 | W32: 0 | X32: 0 | Y32: 0 | Z32: 0 | AA32: 5.288461538 | AB32: 0 | AC32: 0 | AD32: -5.288461538 | AE32: 0 | AF32: 0 | AG32: 0 | AH32: 48.07692308 | AI32: 0.02180754925 | AJ32: 25.62387037 | AK32: 0 | AL32: 0 | AM32: 0 | AN32: 0 | AO32: 0 | AP32: 0 | AQ32: 0 | AR32: 0 | AS32: 0
A34: * | B34: The fertilizer recommendation will vary depending on the soil type, climate and crop rotation. MB Ag. recommends that soil test sampling and analysis be conducted each year to produce a better baseline for fertility. It costs $1.00 to $2.00/acre for custom sampling and analysis.
A36: * | B36: For more information on fertilizer rates and recommendations -
A37: * | B37: Note: phosphorus amounts are allotted to each crop in the above examples. Sometimes this amount may not be practical or safe to apply with the seed of some crops like soybean or canola. Options for meeting these needs and phosphorus balance through the rotation are provided at:
A41: Chemicals
D42: Weed | F42: Disease | G42: Insect | J42: Total
D43: Control | F43: Control | G43: Control | J43: Cost
A44: Crop | D44: $/acre | F44: $/acre | G44: $/acre | J44: $/acre
B45: ='Seed, Fertilizer & Chemical'!B4 -> Hempseed | D45: 47.54 | F45: 0 | G45: 0 | J45: =D45+F45+G45 -> 47.54
B46: ='Seed, Fertilizer & Chemical'!B5 -> Black Bean | D46: 77.02 | F46: 40.5 | G46: 0 | J46: 117.52
B47: ='Seed, Fertilizer & Chemical'!B6 -> Kidney Bean | D47: 77.02 | F47: 40.5 | G47: 0 | J47: 117.52
B48: ='Seed, Fertilizer & Chemical'!B7 -> Buckwheat | D48: 6.13 | F48: 0 | G48: 0 | J48: 6.13
B49: ='Seed, Fertilizer & Chemical'!B8 -> Canaryseed | D49: 14.42 | F49: 13.75 | G49: 0 | J49: 28.17
B50: ='Seed, Fertilizer & Chemical'!B9 -> Fababean | D50: 15.5 | F50: 0 | G50: 0 | J50: 15.5
B51: ='Seed, Fertilizer & Chemical'!B10 -> Lentil | D51: 15.5 | F51: 13.88 | G51: 0 | J51: 29.38
B53: Note:
B54: Pre-emergent burn off and/or pre-harvest desiccation not included in weed control costs.
B55: Chemical costs do not include year end rebates or bundling discounts.
B56: Disease Control costs do not include custom application costs.

Sheet Op. Cost Input
A1: Operating Costs
B3: Interest Rate on Operating | D3: 0.05 | G3: Grain Hauling | R3: # Hired | S3: # of | T3: Acres | U3: Hours
B4: Land Taxes ($/acre) | D4: 17.5 | G4: Distance to storage | I4: 6 | J4: miles roundtrip | R4: Staff | S4: Months | T4: Farmed | U4: Per Acre
B5: Labour rate ($/hour) | D5: 25 | G5: Distance to market | I5: 45 | J5: miles roundtrip | R5: 1 | S5: 12 | T5: ='Fixed Cost Input'!D5+'Fixed Cost Input'!D6 -> 2500 | U5: =SUM(R5*S5*4*40)/T5 -> 0.768
B6: Machinery Operating ($/acre) | D6: 20 | G6: Grain truck fuel use | I6: 5 | J6: Miles per Imp. Gallon | R6: 1 | S6: 4 | T6: =T5 -> 2500 | U6: =SUM(R6*S6*4*40)/T6 -> 0.256
B7: Other Costs ($/acre) | D7: 17.75 | G7: Grain truck size | I7: 475 | J7: bushels | R7: 0 | S7: 0 | T7: =T5 -> 2500 | U7: =SUM(R7*S7*4*40)/T7 -> 0
B8: Fuel Cost ($/litre) | D8: 1.15 | R8: 0 | S8: 0 | T8: =T5 -> 2500 | U8: =SUM(R8*S8*4*40)/T8 -> 0
B9: Owners - Labour & Living (hrs/acre) | D9: 1 | T9: Total | U9: =SUM(U5:U8) -> 1.024
E10: Operating Cost ($/Acre)
C11: Labour | E11: Crop* | F11: Hail | G11: Drying | H11: Storage | I11: Rental and Custom Costs
A12: Crop | C12: (hrs/acre) | D12: Fuel | E12: Insurance | F12: Insurance | G12: Costs | H12: $/acre** | I12: Seeding | J12: Application | K12: Swathing | L12: Harvest | M12: General | N12: Total
B13: ='Seed, Fertilizer & Chemical'!B4 -> Hempseed | C13: 0.2 | D13: =SUM($D$8*D28) -> 24.45356148 | E13: =MROUND(HLOOKUP('Data (HIDE)'!$V$14,'Data (HIDE)'!$C$68:$G$75,2,FALSE)+'Data (HIDE)'!$D$77,0.25) -> 36.75 | F13: =HLOOKUP('Data (HIDE)'!$W$14,'Data (HIDE)'!$D$82:$H$90,3,FALSE) -> 18.9 | G13: - | H13: =-PMT('Fixed Cost Input'!$C$11,20,(HLOOKUP('Data (HIDE)'!$B$13,'Data (HIDE)'!$C$46:$G$53,2,FALSE)/44*(('Fixed Cost Input'!$C$17*'Fixed Cost Input'!$D$17)+('Fixed Cost Input'!$C$18*'Fixed Cost Input'!$D$18)+('Fixed Cost Input'!$C$19*'Fixed Cost Input'!$D$19))*'Fixed Cost Input'!$D$20),0) -> 2.781702986 | I13: - | J13: - | K13: - | L13: - | M13: - | N13: =SUM(I13:M13) -> 0 | AB13: =IF('Data (HIDE)'!$B$14="80% Insured Value",HLOOKUP('Data (HIDE)'!$V$14,'Data (HIDE)'!$C$68:$G$75,2,FALSE),IF('Data (HIDE)'!$B$14="70% Insured Value",HLOOKUP('Data (HIDE)'!$V$14,'Data (HIDE)'!#REF!,2,FALSE),HLOOKUP('Data (HIDE)'!$V$14,'Data (HIDE)'!#REF!,2,FALSE)))+'Data (HIDE)'!$D$77 -> 36.663 | AC13: =HLOOKUP('Data (HIDE)'!$W$14,'Data (HIDE)'!$D$82:$H$90,3,FALSE) -> 18.9
B14: ='Seed, Fertilizer & Chemical'!B5 -> Black Bean | C14: 0.2 | D14: 23.88076442 | E14: =MROUND(HLOOKUP('Data (HIDE)'!$V$14,'Data (HIDE)'!$C$68:$G$75,3,FALSE)+'Data (HIDE)'!$D$77,0.25) -> 33.5 | F14: =HLOOKUP('Data (HIDE)'!$W$14,'Data (HIDE)'!$D$82:$H$90,4,FALSE) -> 16.5375 | G14: - | H14: =-PMT('Fixed Cost Input'!$C$11,20,(HLOOKUP('Data (HIDE)'!$B$13,'Data (HIDE)'!$C$46:$G$53,3,FALSE)/60*(('Fixed Cost Input'!$C$17*'Fixed Cost Input'!$D$17)+('Fixed Cost Input'!$C$18*'Fixed Cost Input'!$D$18)+('Fixed Cost Input'!$C$19*'Fixed Cost Input'!$D$19))*'Fixed Cost Input'!$D$20),0) -> 4.623808518 | I14: - | J14: - | K14: - | L14: - | M14: - | N14: =SUM(I14:M14) -> 0 | AB14: =IF('Data (HIDE)'!$B$14="80% Insured Value",HLOOKUP('Data (HIDE)'!$V$14,'Data (HIDE)'!$C$68:$G$75,3,FALSE),IF('Data (HIDE)'!$B$14="70% Insured Value",HLOOKUP('Data (HIDE)'!$V$14,'Data (HIDE)'!#REF!,3,FALSE),HLOOKUP('Data (HIDE)'!$V$14,'Data (HIDE)'!#REF!,3,FALSE)))+'Data (HIDE)'!$D$77 -> 33.471 | AC14: =HLOOKUP('Data (HIDE)'!$W$14,'Data (HIDE)'!$D$82:$H$90,4,FALSE) -> 16.5375
B15: ='Seed, Fertilizer & Chemical'!B6 -> Kidney Bean | C15: 0.2 | D15: 23.31945305 | E15: =MROUND(HLOOKUP('Data (HIDE)'!$V$14,'Data (HIDE)'!$C$68:$G$75,4,FALSE)+'Data (HIDE)'!$D$77,0.25) -> 48.25 | F15: =HLOOKUP('Data (HIDE)'!$W$14,'Data (HIDE)'!$D$82:$H$90,5,FALSE) -> 16.5375 | G15: - | H15: =-PMT('Fixed Cost Input'!$C$11,20,(HLOOKUP('Data (HIDE)'!$B$13,'Data (HIDE)'!$C$46:$G$53,4,FALSE)/60*(('Fixed Cost Input'!$C$17*'Fixed Cost Input'!$D$17)+('Fixed Cost Input'!$C$18*'Fixed Cost Input'!$D$18)+('Fixed Cost Input'!$C$19*'Fixed Cost Input'!$D$19))*'Fixed Cost Input'!$D$20),0) -> 3.807842309 | I15: - | J15: - | K15: - | L15: - | M15: - | N15: 0 | AB15: =IF('Data (HIDE)'!$B$14="80% Insured Value",HLOOKUP('Data (HIDE)'!$V$14,'Data (HIDE)'!$C$68:$G$75,4,FALSE),IF('Data (HIDE)'!$B$14="70% Insured Value",HLOOKUP('Data (HIDE)'!$V$14,'Data (HIDE)'!#REF!,4,FALSE),HLOOKUP('Data (HIDE)'!$V$14,'Data (HIDE)'!#REF!,4,FALSE)))+'Data (HIDE)'!$D$77 -> 48.132 | AC15: =HLOOKUP('Data (HIDE)'!$W$14,'Data (HIDE)'!$D$82:$H$90,5,FALSE) -> 16.5375
B16: ='Seed, Fertilizer & Chemical'!B7 -> Buckwheat | C16: 0.2 | D16: 21.00393411 | E16: =MROUND(HLOOKUP('Data (HIDE)'!$V$14,'Data (HIDE)'!$C$68:$G$75,5,FALSE)+'Data (HIDE)'!$D$77,0.25) -> 19 | F16: =HLOOKUP('Data (HIDE)'!$W$14,'Data (HIDE)'!$D$82:$H$90,6,FALSE) -> 23.625 | G16: - | H16: =-PMT('Fixed Cost Input'!$C$11,20,(HLOOKUP('Data (HIDE)'!$B$13,'Data (HIDE)'!$C$46:$G$53,5,FALSE)*(('Fixed Cost Input'!$C$17*'Fixed Cost Input'!$D$17)+('Fixed Cost Input'!$C$18*'Fixed Cost Input'!$D$18)+('Fixed Cost Input'!$C$19*'Fixed Cost Input'!$D$19))*'Fixed Cost Input'!$D$20),0) -> 2.447898627 | I16: - | J16: - | K16: - | L16: - | M16: - | N16: 0 | AB16: =IF('Data (HIDE)'!$B$14="80% Insured Value",HLOOKUP('Data (HIDE)'!$V$14,'Data (HIDE)'!$C$68:$G$75,5,FALSE),IF('Data (HIDE)'!$B$14="70% Insured Value",HLOOKUP('Data (HIDE)'!$V$14,'Data (HIDE)'!#REF!,5,FALSE),HLOOKUP('Data (HIDE)'!$V$14,'Data (HIDE)'!#REF!,5,FALSE)))+'Data (HIDE)'!$D$77 -> 19.116 | AC16: =HLOOKUP('Data (HIDE)'!$W$14,'Data (HIDE)'!$D$82:$H$90,6,FALSE) -> 23.625
B17: ='Seed, Fertilizer & Chemical'!B8 -> Canaryseed | C17: 0.2 | D17: 23.37513048 | E17: =MROUND(HLOOKUP('Data (HIDE)'!$V$14,'Data (HIDE)'!$C$68:$G$75,6,FALSE)+'Data (HIDE)'!$D$77,0.25) -> 24 | F17: =HLOOKUP('Data (HIDE)'!$W$14,'Data (HIDE)'!$D$82:$H$90,7,FALSE) -> 9.45 | G17: - | H17: =-PMT('Fixed Cost Input'!$C$11,20,(HLOOKUP('Data (HIDE)'!$B$13,'Data (HIDE)'!$C$46:$G$53,6,FALSE)/50*(('Fixed Cost Input'!$C$17*'Fixed Cost Input'!$D$17)+('Fixed Cost Input'!$C$18*'Fixed Cost Input'!$D$18)+('Fixed Cost Input'!$C$19*'Fixed Cost Input'!$D$19))*'Fixed Cost Input'!$D$20),0) -> 5.058990496 | I17: - | J17: - | K17: - | L17: - | M17: - | N17: 0 | AB17: =IF('Data (HIDE)'!$B$14="80% Insured Value",HLOOKUP('Data (HIDE)'!$V$14,'Data (HIDE)'!$C$68:$G$75,6,FALSE),IF('Data (HIDE)'!$B$14="70% Insured Value",HLOOKUP('Data (HIDE)'!$V$14,'Data (HIDE)'!#REF!,6,FALSE),HLOOKUP('Data (HIDE)'!$V$14,'Data (HIDE)'!#REF!,6,FALSE)))+'Data (HIDE)'!$D$77 -> 23.997 | AC17: =HLOOKUP('Data (HIDE)'!$W$14,'Data (HIDE)'!$D$82:$H$90,7,FALSE) -> 9.45
B18: ='Seed, Fertilizer & Chemical'!B9 -> Fababean | C18: 0.2 | D18: 22.12838716 | E18: =MROUND(HLOOKUP('Data (HIDE)'!$V$14,'Data (HIDE)'!$C$68:$G$75,7,FALSE)+'Data (HIDE)'!$D$77,0.25) -> 36.75 | F18: =HLOOKUP('Data (HIDE)'!$W$14,'Data (HIDE)'!$D$82:$H$90,8,FALSE) -> 16.5375 | G18: - | H18: =-PMT('Fixed Cost Input'!$C$11,20,(HLOOKUP('Data (HIDE)'!$B$13,'Data (HIDE)'!$C$46:$G$53,7,FALSE)/60*(('Fixed Cost Input'!$C$17*'Fixed Cost Input'!$D$17)+('Fixed Cost Input'!$C$18*'Fixed Cost Input'!$D$18)+('Fixed Cost Input'!$C$19*'Fixed Cost Input'!$D$19))*'Fixed Cost Input'!$D$20),0) -> 6.255740936 | I18: - | J18: - | K18: - | L18: - | M18: - | N18: 0 | AB18: =IF('Data (HIDE)'!$B$14="80% Insured Value",HLOOKUP('Data (HIDE)'!$V$14,'Data (HIDE)'!$C$68:$G$75,7,FALSE),IF('Data (HIDE)'!$B$14="70% Insured Value",HLOOKUP('Data (HIDE)'!$V$14,'Data (HIDE)'!#REF!,7,FALSE),HLOOKUP('Data (HIDE)'!$V$14,'Data (HIDE)'!#REF!,7,FALSE)))+'Data (HIDE)'!$D$77 -> 36.663 | AC18: =HLOOKUP('Data (HIDE)'!$W$14,'Data (HIDE)'!$D$82:$H$90,8,FALSE) -> 16.5375
B19: ='Seed, Fertilizer & Chemical'!B10 -> Lentil | C19: 0.2 | D19: 19.92991763 | E19: =MROUND(HLOOKUP('Data (HIDE)'!$V$14,'Data (HIDE)'!$C$68:$G$75,8,FALSE)+'Data (HIDE)'!$D$77,0.25) -> 17.25 | F19: =HLOOKUP('Data (HIDE)'!$W$14,'Data (HIDE)'!$D$82:$H$90,9,FALSE) -> 12.285 | G19: - | H19: =-PMT('Fixed Cost Input'!$C$11,20,(HLOOKUP('Data (HIDE)'!$B$13,'Data (HIDE)'!$C$46:$G$53,8,FALSE)/60*(('Fixed Cost Input'!$C$17*'Fixed Cost Input'!$D$17)+('Fixed Cost Input'!$C$18*'Fixed Cost Input'!$D$18)+('Fixed Cost Input'!$C$19*'Fixed Cost Input'!$D$19))*'Fixed Cost Input'!$D$20),0) -> 3.059873284 | I19: - | J19: - | K19: - | L19: - | M19: - | N19: 0 | AB19: =IF('Data (HIDE)'!$B$14="80% Insured Value",HLOOKUP('Data (HIDE)'!$V$14,'Data (HIDE)'!$C$68:$G$75,8,FALSE),IF('Data (HIDE)'!$B$14="70% Insured Value",HLOOKUP('Data (HIDE)'!$V$14,'Data (HIDE)'!#REF!,8,FALSE),HLOOKUP('Data (HIDE)'!$V$14,'Data (HIDE)'!#REF!,8,FALSE)))+'Data (HIDE)'!$D$77 -> 17.172 | AC19: =HLOOKUP('Data (HIDE)'!$W$14,'Data (HIDE)'!$D$82:$H$90,9,FALSE) -> 12.285
A20: =IF('Data (HIDE)'!B13="Manitoba","* "&'Data (HIDE)'!B14&" - Based on MASC Risk Areas 2, 5, 6, & 12","* "&'Data (HIDE)'!B14&" - Based on MASC "&'Data (HIDE)'!B13) -> * 80% Insured Value - Based on MASC Risk Areas 2, 5, 6, & 12 | H20: ** Storage costs are listed under Fixed Costs on the Summary Page.
A22: Field Fuel Usage
E24: Number of Field Operations & Litres Fuel Per Acre Per Operation | M24: Trucks L/acre
E25: cultivator or tandem disk | F25: high speed disk | G25: harrow or land roller | H25: air drill | I25: row planter | J25: SP sprayer | K25: swather | L25: combine & grain cart | M25: 3/4 ton pickup | N25: grain hauling
D26: Total
A27: Crop | D27: L/acre | E27: 2.3 | F27: 3.5 | G27: 1.1 | H27: 2.6 | I27: 1.7 | J27: 0.5 | K27: 1.8 | L27: 6 | M27: 2
B28: =B13 -> Hempseed | D28: =SUM(E28*$E$27)+(F28*$F$27)+(G28*$G$27)+(H28*$H$27)+(I28*$I$27)+(J28*$J$27)+(K28*$K$27)+(L28*$L$27)+M28+N28 -> 21.26396651 | E28: 1 | F28: 1 | G28: 2 | H28: 1 | J28: 2 | L28: 1 | M28: =$M$27 -> 2 | N28: =SUM((($I$4/$I$6)*4.546)/('Op. Cost Input'!$I$7/(HLOOKUP(B28,Summary!$C$2:$S$37,36,FALSE)/44)))+((($I$5/$I$6)*4.546)/('Op. Cost Input'!$I$7/(HLOOKUP(B28,Summary!$C$2:$S$37,36,FALSE)/44))) -> 1.663966507
B29: Black Bean | D29: =SUM(E29*$E$27)+(F29*$F$27)+(G29*$G$27)+(H29*$H$27)+(I29*$I$27)+(J29*$J$27)+(K29*$K$27)+(L29*$L$27)+M29+N29 -> 20.76588211 | E29: 1 | G29: 2 | I29: 1 | J29: 4 | K29: 1 | L29: 1 | M29: 2 | N29: =SUM((($I$4/$I$6)*4.546)/('Op. Cost Input'!$I$7/(HLOOKUP(B29,Summary!$C$2:$S$37,36,FALSE)/60)))+((($I$5/$I$6)*4.546)/('Op. Cost Input'!$I$7/(HLOOKUP(B29,Summary!$C$2:$S$37,36,FALSE)/60))) -> 2.765882105
B30: Kidney Bean | D30: 20.27778526 | E30: 1 | G30: 2 | I30: 1 | J30: 4 | K30: 1 | L30: 1 | M30: 2 | N30: =SUM((($I$4/$I$6)*4.546)/('Op. Cost Input'!$I$7/(HLOOKUP(B30,Summary!$C$2:$S$37,36,FALSE)/60)))+((($I$5/$I$6)*4.546)/('Op. Cost Input'!$I$7/(HLOOKUP(B30,Summary!$C$2:$S$37,36,FALSE)/60))) -> 2.277785263
B31: Buckwheat | D31: 18.26429053 | E31: 1 | G31: 1 | H31: 1 | J31: 2 | K31: 1 | L31: 1 | M31: 2 | N31: =SUM((($I$4/$I$6)*4.546)/('Op. Cost Input'!$I$7/HLOOKUP(B31,Summary!$C$2:$I$37,36,FALSE)))+((($I$5/$I$6)*4.546)/('Op. Cost Input'!$I$7/HLOOKUP(B31,Summary!$C$2:$I$37,36,FALSE))) -> 1.464290526
B32: Canaryseed | D32: 20.32620042 | E32: 1 | G32: 1 | H32: 1 | J32: 3 | K32: 1 | L32: 1 | M32: 2 | N32: =SUM((($I$4/$I$6)*4.546)/('Op. Cost Input'!$I$7/(HLOOKUP(B32,Summary!$C$2:$S$37,36,FALSE)/50)))+((($I$5/$I$6)*4.546)/('Op. Cost Input'!$I$7/(HLOOKUP(B32,Summary!$C$2:$S$37,36,FALSE)/50))) -> 3.026200421
B33: Fababean | D33: 19.24207579 | E33: 1 | G33: 1 | H33: 1 | J33: 3 | L33: 1 | M33: 2 | N33: =SUM((($I$4/$I$6)*4.546)/('Op. Cost Input'!$I$7/(HLOOKUP(B33,Summary!$C$2:$S$37,36,FALSE)/60)))+((($I$5/$I$6)*4.546)/('Op. Cost Input'!$I$7/(HLOOKUP(B33,Summary!$C$2:$S$37,36,FALSE)/60))) -> 3.742075789
B34: Lentil | D34: 17.33036316 | E34: 1 | G34: 1 | H34: 1 | J34: 3 | L34: 1 | M34: 2 | N34: =SUM((($I$4/$I$6)*4.546)/('Op. Cost Input'!$I$7/(HLOOKUP(B34,Summary!$C$2:$S$37,36,FALSE)/60)))+((($I$5/$I$6)*4.546)/('Op. Cost Input'!$I$7/(HLOOKUP(B34,Summary!$C$2:$S$37,36,FALSE)/60))) -> 1.830363158

Sheet Fixed Cost Input
A1: Fixed Costs
B3: Land | I3: Conventional | J3: Special
B4: Average Land value ($/acre) | D4: 3400 | G4: Machinery | I4: Crop | J4: Crop
B5: Conventional Crop acres | D5: 2000 | G5: Total Investment ($/acre) | I5: =ROUND((C44)/(D5+D6),2) -> 500 | J5: =ROUND((C52)/(D6+D5),2) -> 60
B6: Special Crop acres | D6: 500 | G6: Residual Value (End of Useful Life) | I6: 0.25
B7: Owned Land Equity | D7: 0.85 | G7: Useful Life (years) | I7: 15
B8: Land Financed | D8: =SUM(1-D7) -> 0.15 | G8: Owned Equipment Equity | I8: 0.55
B9: Land Opportunity Cost (Investment Rate) | D9: 0.015 | G9: Equipment Financed | I9: =SUM(1-I8) -> 0.45
B10: Land cost ($/acre) | G10: Machinery Opportunity Cost (Investment Rate) | I10: 0.015
B11: Finance Rate & Term | C11: 0.04625 | D11: 25 | E11: Years
B12: Principle & Interest Cost | D12: =-PMT(C11,D11,D4*D8,0) -> 34.837794 | G12: Machinery Cost ($/acre)
B13: Owned Land Opportunity Cost | D13: =SUM(D4*D7)*(D9) -> 43.35 | G13: Finance Rate & Term | H13: 0.05 | I13: 7 | J13: Years
B14: Total Cost | D14: =SUM(D12:D13) -> 78.187794 | G14: Principle & Interest Cost | I14: =-PMT(H13,I13,I5*I9,0) -> 38.88445915 | J14: =-PMT(H13,I13,J5*I9,0) -> 4.666135098
G15: Machinery Depreciation Cost | I15: =(I5-(I5*I6))/I7 -> 25 | J15: =(J5-(J5*I6))/I7 -> 3
B16: Grain Storage | C16: Usage % | D16: Cost | G16: Owned Machinery Opportunity Cost | I16: =SUM(I5*I8)*(I10) -> 4.125 | J16: =SUM(J5*I8)*(I10) -> 0.495
B17: Non-aeration bins | C17: 0.15 | D17: 2.5 | E17: /bu | I17: =SUM(I14:I16) -> 68.00945915 | J17: =SUM(J14:J16) -> 8.161135098
B18: Aeration bins | C18: 0.7 | D18: 3.5 | E18: /bu
B19: Hopper bins | C19: 0.15 | D19: 4.5 | E19: /bu | G19: Total Land & Machinery Debt ($/acre) | I19: =(D4*D8)+((I5+J5)*I9) -> 762
B20: Storage Financed | D20: 0.6 | G20: Machinery Lease cost ($/acre) | I20: =D62 -> 2.88
A22: Conventional Crop Equipment Inventory and Current Values
C23: Market | D23: Grain | E23: Grain | H23: Market | I23: Grain | J23: Grain
A24: Power & Misc Equipment | C24: Value | D24: Usage % | E24: Allocation | G24: Harvest Equipment | H24: Value | I24: Usage % | J24: Allocation
B25: 4WD Tractor 475HP | C25: 250000 | D25: 1 | E25: =SUM(C25*D25) -> 250000 | G25: Combine | H25: 260000 | I25: 1 | J25: =SUM(H25*I25) -> 260000
B26: MFWD Tractor 150HP | C26: 100000 | D26: 1 | E26: =SUM(C26*D26) -> 100000 | G26: Swather 35 ft | H26: 30000 | I26: 1 | J26: =SUM(H26*I26) -> 30000
B27: 2WD Tractor 60HP | C27: 30000 | D27: 1 | E27: 30000 | G27: Harvest Header | H27: 50000 | I27: 1 | J27: 50000
B28: ATV Quad | C28: 5000 | D28: 1 | E28: 5000 | G28: Tandem grain truck | H28: 60000 | I28: 1 | J28: 60000
C29: 0 | D29: 0 | E29: 0 | G29: Grain cart | H29: 35000 | I29: 1 | J29: 35000
C30: 0 | D30: 0 | E30: 0 | H30: 0 | I30: 0 | J30: 0
C31: 0 | D31: 0 | E31: 0 | H31: 0 | I31: 0 | J31: 0
B32: Total | E32: =SUM(E25:E31) -> 385000 | G32: Total | J32: =SUM(J25:J31) -> 435000
C34: Market | D34: Grain | E34: Grain | H34: Market | I34: Grain | J34: Grain
A35: Seeding & Tillage | C35: Value | D35: Usage % | E35: Allocation | G35: Spraying & Misc. | H35: Value | I35: Usage % | J35: Allocation
B36: Cultivator | C36: 15000 | D36: 1 | E36: =SUM(C36*D36) -> 15000 | G36: SP sprayer | H36: 175000 | I36: 1 | J36: =SUM(H36*I36) -> 175000
B37: Harrow 80ft | C37: 27000 | D37: 1 | E37: 27000 | G37: Miscellaneous | H37: 9000 | I37: 1 | J37: 9000
B38: Air tank | C38: 60000 | D38: 1 | E38: 60000 | G38: PTO Auger 13x70 | H38: 15000 | I38: 1 | J38: 15000
B39: Air drill | C39: 125000 | D39: 1 | E39: 125000 | G39: Auger 8x35 | H39: 4000 | I39: 1 | J39: 4000
C40: 0 | D40: 0 | E40: 0 | H40: 0 | I40: 0 | J40: 0
C41: 0 | D41: 0 | E41: 0 | H41: 0 | I41: 0 | J41: 0
B42: Total | C42: =SUM(C36:C41) -> 227000 | E42: =SUM(E36:E41) -> 227000 | G42: Total | J42: =SUM(J36:J41) -> 203000
B44: Owned Equipment TOTAL | C44: =SUM(E32+J32+E42+J42) -> 1250000
A46: Special Crop Equipment Inventory and Current Values
C47: Market | D47: Grain | E47: Grain | H47: Market | I47: Grain | J47: Grain
A48: Seeding, Tillage, Spraying | C48: Value | D48: Usage % | E48: Allocation | G48: Harvest Equipment | H48: Value | I48: Usage % | J48: Allocation
B49: Planter | C49: 100000 | D49: 1 | E49: =SUM(C49*D49) -> 100000 | G49: Harvest Header | H49: 50000 | I49: 1 | J49: =SUM(H49*I49) -> 50000
C50: 0 | D50: 0 | E50: =SUM(C50*D50) -> 0 | H50: 0 | I50: 0 | J50: =SUM(H50*I50) -> 0
B51: Total | E51: =SUM(E49:E50) -> 100000 | G51: Total | J51: =SUM(J49:J50) -> 50000
B52: Special Equipment TOTAL | C52: =SUM(E51+J51) -> 150000
A54: Leased Equipment Inventory
C55: Annual | D55: Grain | E55: Grain | H55: Annual | I55: Grain | J55: Grain
A56: Seeding, Tillage, Spraying | C56: Lease | D56: Usage % | E56: Allocation | G56: Trucks & Trailers | H56: Lease | I56: Usage % | J56: Allocation
B57: enter equipment here | C57: 0 | D57: 0 | E57: =SUM(C57*D57) -> 0 | G57: 3/4 ton pickup | H57: 9600 | I57: 0.75 | J57: =SUM(H57*I57) -> 7200
C58: 0 | D58: 0 | E58: =SUM(C58*D58) -> 0 | H58: 0 | I58: 0 | J58: =SUM(H58*I58) -> 0
C59: 0 | D59: 0 | E59: =SUM(C59*D59) -> 0 | H59: 0 | I59: 0 | J59: =SUM(H59*I59) -> 0
B60: Total | C60: =SUM(C57:C59) -> 0 | E60: =SUM(E57:E59) -> 0 | G60: Total | J60: =SUM(J57:J59) -> 7200
B62: Leased Equipment TOTAL | C62: =SUM(E60+J60) -> 7200 | D62: =SUM(C62/(D5+D6)) -> 2.88 | E62: per acre
B63: * Leased equipment costs are listed under Operating Costs on the Summary Page.

Sheet Assumptions
A1: Other Assumptions
A3: Fuel Costs: Includes fuel used for field work, trucking in inputs and trucking out production.
A5: Machinery Operating Costs: Includes costs for maintenance, repairs, licenses and insurance, based on 3.2% of machinery investment cost.
A8: Crop Insurance: (2021 rates)
A9: =IF('Data (HIDE)'!B13="Manitoba",'Data (HIDE)'!B14&" coverage, $50/acre excess moisture Insurance, and additional hail insurance at $"&'Data (HIDE)'!W13&"/acre coverage for all crops. Coverage and costs based on MASC Risk Areas #2, 5, 6, and 12.",'Data (HIDE)'!B14&" coverage, $50/acre excess moisture Insurance, and additional hail insurance at $"&'Data (HIDE)'!W13&"/acre coverage for all crops. Coverage and costs based on MASC "&'Data (HIDE)'!B13) -> 80% Insured Value coverage, $50/acre excess moisture Insurance, and additional hail insurance at $300/acre coverage for all crops. Coverage and costs based on MASC Risk Areas #2, 5, 6, and 12.
A12: Other Costs: Includes overhead expenses - hydro, telephone, accounting, buildings, supplies and insurance, etc.
A14: Land Taxes: The average cost based on land tax assessment and mill rates of a sample of municipalities growing crops less provincial tax rebate.
A16: Interest On Operating: | D16: ="Interest charges on operating costs are calculated at "&'Op. Cost Input'!D3*100&"% for six months." -> Interest charges on operating costs are calculated at 5% for six months.
A18: Land Cost:
A19: ="Based on approximate average land values. Budget assumed "&'Fixed Cost Input'!D8*100&"% financed at "&'Fixed Cost Input'!C11*100&"% for "&'Fixed Cost Input'!D11&" years, plus "&'Fixed Cost Input'!D9*100&"% land equity opportunity cost. Budget can be used to estimate cashflow by removing investment cost." -> Based on approximate average land values. Budget assumed 15% financed at 4.625% for 25 years, plus 1.5% land equity opportunity cost. Budget can be used to estimate cashflow by removing investment cost.
A21: ="P&I Cost (based on "&TEXT('Fixed Cost Input'!D4*('Fixed Cost Input'!D5+'Fixed Cost Input'!D6)*'Fixed Cost Input'!D8,"$#,###")&" Mortgage) = $"&TEXT('Fixed Cost Input'!D12*('Fixed Cost Input'!D5+'Fixed Cost Input'!D6),"#,###")&" payments per year) / "&'Fixed Cost Input'!D5+'Fixed Cost Input'!D6&" acres = $"&TEXT('Fixed Cost Input'!D12,"0.00")&"/acre)" -> P&I Cost (based on $1,275,000 Mortgage) = $87,094 payments per year) / 2500 acres = $34.84/acre)
A22: ="Investment = (Total Investment x Owned Equity %) x Investment Rate % (eg. (($"&TEXT('Fixed Cost Input'!D4,"#,###")&" x "&'Fixed Cost Input'!D7*100&"%) x "&'Fixed Cost Input'!D9*100&"%) = $"&TEXT('Fixed Cost Input'!D13,"0.00")&"/acre)" -> Investment = (Total Investment x Owned Equity %) x Investment Rate % (eg. (($3,400 x 85%) x 1.5%) = $43.35/acre)
A24: Machinery Cost:
A25: ="Based on approximate average machinery values. Budget assumed "&'Fixed Cost Input'!I9*100&"% financed at "&'Fixed Cost Input'!H13*100&"% for "&'Fixed Cost Input'!I13&" years, depreciation costs over "&'Fixed Cost Input'!I7&" years with a "&'Fixed Cost Input'!I6*100&"% residual value, plus "&'Fixed Cost Input'!I10*100&"% machinery equity opportunity cost. Budget can be used to estimate cashflow by removing depreciation and investment cost. " -> Based on approximate average machinery values. Budget assumed 45% financed at 5% for 7 years, depreciation costs over 15 years with a 25% residual value, plus 1.5% machinery equity opportunity cost. Budget can be used to estimate cashflow by removing depreciation and investment cost.
A28: ="P&I Cost (based on "&TEXT('Fixed Cost Input'!C44*'Fixed Cost Input'!I9,"$#,###")&" + "&TEXT('Fixed Cost Input'!C52*'Fixed Cost Input'!I9,"$#,###")&" Loans) = $"&TEXT('Fixed Cost Input'!I14*('Fixed Cost Input'!D5+'Fixed Cost Input'!D6),"#,###")&" + $"&TEXT('Fixed Cost Input'!J14*('Fixed Cost Input'!D5+'Fixed Cost Input'!D6),"#,###")&" payments per year) / "&'Fixed Cost Input'!D5+'Fixed Cost Input'!D6&" acres = $"&TEXT('Fixed Cost Input'!I14,"0.00")&" and $"&TEXT('Fixed Cost Input'!J14,"0.00")&"/acre)" -> P&I Cost (based on $562,500 + $67,500 Loans) = $97,211 + $11,665 payments per year) / 2500 acres = $38.88 and $4.67/acre)
A29: ="Depreciation (Useage Cost) = (Total Investment - Residual Value) / Years Useful Life (eg. ($"&TEXT('Fixed Cost Input'!I5,"0.00")&" - ($"&TEXT('Fixed Cost Input'!I5,"0.00")&" x "&'Fixed Cost Input'!I6*100&"%)) / "&'Fixed Cost Input'!I7&" = $"&TEXT('Fixed Cost Input'!I15,"0.00")&"/acre)" -> Depreciation (Useage Cost) = (Total Investment - Residual Value) / Years Useful Life (eg. ($500.00 - ($500.00 x 25%)) / 15 = $25.00/acre)
A30: ="Investment = (Total Investment x Owned Equity %) x Investment Rate % (eg. ($"&'Fixed Cost Input'!I5&" x "&'Fixed Cost Input'!I8*100&"%) x "&'Fixed Cost Input'!I10*100&"%) = $"&TEXT('Fixed Cost Input'!I16,"0.00")&"/acre)" -> Investment = (Total Investment x Owned Equity %) x Investment Rate % (eg. ($500 x 55%) x 1.5%) = $4.13/acre)
A32: Depreciation Cost = Original Cost - Salvage Value
A33: =" Useful Life" -> Useful Life
A34: Investment Cost = Original Cost + Salvage Value x Investment Rate
A35: =" 2" -> 2
A36: Estimated Farmgate Values:
A37: Target crop prices are based on deferred delivery contract prices for fall 2022.
A38: Target yields are estimated based on 5 year MASC average yields.
A40: Storage Cost:
A41: Storage costs for each crop are based on estimated yields entered on the Summary page.
A42: ="Budget assumed "&'Fixed Cost Input'!D20*100&"% financed at "&'Fixed Cost Input'!C11*100&"% for 20 years." -> Budget assumed 60% financed at 4.625% for 20 years.
A43: ="Farm storage requirements were assumed to cost $"&TEXT('Fixed Cost Input'!D17,"0.00")&"/bushel for "&'Fixed Cost Input'!C17*100&"% of the storage, $"&TEXT('Fixed Cost Input'!D18,"0.00")&"/bushel for "&'Fixed Cost Input'!C18*100&"% aerated storage and $"&TEXT('Fixed Cost Input'!D19,"0.00")&"/bushel for "&'Fixed Cost Input'!C19*100&"% hopper storage." -> Farm storage requirements were assumed to cost $2.50/bushel for 15% of the storage, $3.50/bushel for 70% aerated storage and $4.50/bushel for 15% hopper storage.
A46: Profitability, Breakeven & Risk Analysis Formulas:
A47: ="Gross Revenue = Price per unit x Yield per acre (eg. kidney bean: $"&TEXT('Data (HIDE)'!E18,"0.00")&"/lb x "&'Data (HIDE)'!C18&"lb/ac = $"&TEXT('Data (HIDE)'!AL18, "0.00")&"/ac)" -> Gross Revenue = Price per unit x Yield per acre (eg. kidney bean: $0.49/lb x 1400lb/ac = $686.00/ac)
A48: ="Net Profit = Gross Revenue - Total Cost (eg. kidney bean: $"&TEXT('Data (HIDE)'!AL18,"0.00")&" gross revenue - $"&TEXT('Data (HIDE)'!AI18,"0.00")&" total cost = $"&TEXT('Data (HIDE)'!AM18,"0.00")&" per acre)" -> Net Profit = Gross Revenue - Total Cost (eg. kidney bean: $686.00 gross revenue - $800.09 total cost = $-114.09 per acre)
A49: ="Operating Expense Ratio = (Operating Cost / Gross Revenue) x 100 (eg. kidney bean: $"&TEXT('Data (HIDE)'!AC18,"0.00")&" operating expense / $"&ROUND('Data (HIDE)'!AL18,2)&" revenue = "&TEXT('Data (HIDE)'!AN18*100,"0.0")&"%)" -> Operating Expense Ratio = (Operating Cost / Gross Revenue) x 100 (eg. kidney bean: $620.74 operating expense / $686 revenue = 90.5%)
A50: ="Return on Investment (ROI) = (Gross Revenue - Total Cost) / Total Cost (eg. kidney bean: ($"&TEXT('Data (HIDE)'!AL18,"0.00")&" - $"&TEXT('Data (HIDE)'!AI18,"0.00")&") / $"&TEXT('Data (HIDE)'!AI18,"0.00")&" = "&TEXT('Data (HIDE)'!AT18*100,"0.0")&"%)" -> Return on Investment (ROI) = (Gross Revenue - Total Cost) / Total Cost (eg. kidney bean: ($686.00 - $800.09) / $800.09 = -14.3%)
A51: Estimated Return on Asset (ROA) = (Margin Over Operating - Labour - Machinery Depreciation) / (Land Investment Cost + Machinery Investment Cost)
A52: =" (eg. kidney bean: ($"&TEXT('Data (HIDE)'!AL18-'Data (HIDE)'!AC18,"0.00")&" margin - $"&TEXT('Data (HIDE)'!AH18,"0.00")&" labour - $"&TEXT(('Fixed Cost Input'!$I$15+'Fixed Cost Input'!$J$15),"0.00")&" dep.) / ($"&'Fixed Cost Input'!D4&" land cost + $"&TEXT('Fixed Cost Input'!I5,"0.00")&" conv. machinery + $"&TEXT('Fixed Cost Input'!J5,"0.00")&" special crop. mach.) = "&TEXT('Data (HIDE)'!AS18*100,".00")&"%) " -> (eg. kidney bean: ($65.26 margin - $25.00 labour - $28.00 dep.) / ($3400 land cost + $500.00 conv. machinery + $60.00 special crop. mach.) = .31%)
A53: ="Breakeven Price = Cost / Target Yield (eg. kidney bean cost $"&TEXT('Data (HIDE)'!AI18,"0.00")&" / "&'Data (HIDE)'!C18&" lb = $"&TEXT('Data (HIDE)'!AO18,"0.00")&" per lb)" -> Breakeven Price = Cost / Target Yield (eg. kidney bean cost $800.09 / 1400 lb = $0.57 per lb)
A54: ="Breakeven Yield = Cost / Target Price per Unit (eg. kidney bean cost $"&TEXT('Data (HIDE)'!AI18,"0.00")&" / $"&TEXT('Data (HIDE)'!E18,"0.00")&" lb = "&TEXT('Data (HIDE)'!AP18,"0.0")&" lb)" -> Breakeven Yield = Cost / Target Price per Unit (eg. kidney bean cost $800.09 / $0.49 lb = 1632.8 lb)
A55: ="Breakeven Yield Risk Ratio = (Yield per Acre / Breakeven Yield) x 100 (eg. kidney bean yield "&'Data (HIDE)'!C18&" lb/ac / "&TEXT('Data (HIDE)'!AP18,"0.0")&" lb BE = "&ROUND('Data (HIDE)'!AQ18*100,0)&" %)" -> Breakeven Yield Risk Ratio = (Yield per Acre / Breakeven Yield) x 100 (eg. kidney bean yield 1400 lb/ac / 1632.8 lb BE = 86 %)
A56: ="AgriInsurance Risk Ratio = (AgriInsurance Coverage / Operating Cost) x 100 (eg. kidney bean coverage $"&TEXT('Data (HIDE)'!AJ18,"0.00")&"/ac / $"&TEXT('Data (HIDE)'!AC18,"0.00")&" operating expense = "&ROUND('Data (HIDE)'!AR18*100,0)&" %)" -> AgriInsurance Risk Ratio = (AgriInsurance Coverage / Operating Cost) x 100 (eg. kidney bean coverage $610.00/ac / $620.74 operating expense = 98 %)
A58: Created and maintained by | L58: ="January, "&Introduction!I11 -> January, 2022
A59: For more information, contact your nearest
A60: Darren Bond | E60: Roy Arnott | I60: Sharon Ardron
A61: Farm Management Specialist | E61: Farm Management Specialist | I61: Farm Management Specialist

Sheet Chart data (HIDE) (hidden)
A2: ='Data (HIDE)'!B13&" Breakeven Yield Risk Ratio - "&Introduction!I11 -> Manitoba Breakeven Yield Risk Ratio - 2022
A3: ='Data (HIDE)'!B13&" Risk & Reward Analysis - "&Introduction!I11 -> Manitoba Risk & Reward Analysis - 2022 | E3: 80% Coverage of Total Costs
A4: ='Data (HIDE)'!B13&" - "&'Data (HIDE)'!B14&" AgriInsurance Risk Analysis - "&Introduction!I11 -> Manitoba - 80% Insured Value AgriInsurance Risk Analysis - 2022
B5: Operating Costs | C5: ='Data (HIDE)'!B14 -> 80% Insured Value | D5: 80% Coverage of Operating Costs | E5: 80% Coverage of Total Costs (Risk) | F5: Return on Asset (Reward) | G5: Return on Investment (Reward) | L5: Target Yield as % of B/E Yield
A6: ='Data (HIDE)'!B16 -> Black Bean | B6: ='Data (HIDE)'!AC16 -> 470.0336041 | C6: ='Data (HIDE)'!AJ16 -> 520 | D6: ='Data (HIDE)'!AV16 -> 1.10630388 | E6: ='Data (HIDE)'!AW16 -> 0.8007490178 | F6: ='Data (HIDE)'!AS16 -> 0.06110262523 | G6: ='Data (HIDE)'!AT16 -> 0.1780249973 | L6: ='Data (HIDE)'!AX16 -> 1.178019541
A7: ='Data (HIDE)'!B17 -> Hempseed | B7: ='Data (HIDE)'!AC17 -> 364.3267956 | C7: ='Data (HIDE)'!AJ17 -> 460 | D7: ='Data (HIDE)'!AV17 -> 1.262602711 | E7: ='Data (HIDE)'!AW17 -> 0.8589716952 | F7: ='Data (HIDE)'!AS17 -> 0.06582656677 | G7: ='Data (HIDE)'!AT17 -> 0.2604475963 | L7: ='Data (HIDE)'!AX17 -> 1.260504202
A8: ='Data (HIDE)'!B18 -> Kidney Bean | B8: ='Data (HIDE)'!AC18 -> 620.7363265 | C8: ='Data (HIDE)'!AJ18 -> 610 | D8: ='Data (HIDE)'!AV18 -> 0.9827038856 | E8: ='Data (HIDE)'!AW18 -> 0.7624097357 | F8: ='Data (HIDE)'!AS18 -> 0.003096887247 | G8: ='Data (HIDE)'!AT18 -> -0.1426015104 | L8: ='Data (HIDE)'!AX18 -> 0.8574228319
A9: ='Data (HIDE)'!B19 -> Fababean | B9: ='Data (HIDE)'!AC19 -> 255.9573398 | C9: ='Data (HIDE)'!AJ19 -> 200 | D9: ='Data (HIDE)'!AV19 -> 0.7813802104 | E9: ='Data (HIDE)'!AW19 -> 0.4682145605 | F9: ='Data (HIDE)'!AS19 -> 0.03889966168 | G9: ='Data (HIDE)'!AT19 -> 0.07689348923 | L9: ='Data (HIDE)'!AX19 -> 1.076879858
A10: ='Data (HIDE)'!B20 -> Buckwheat | B10: ='Data (HIDE)'!AC20 -> 221.2905354 | C10: ='Data (HIDE)'!AJ20 -> 180 | D10: ='Data (HIDE)'!AV20 -> 0.8134102966 | E10: ='Data (HIDE)'!AW20 -> 0.4586129945 | F10: ='Data (HIDE)'!AS20 -> -0.00221983216 | G10: ='Data (HIDE)'!AT20 -> -0.331189383 | L10: ='Data (HIDE)'!AX20 -> 0.6696428571
A11: ='Data (HIDE)'!B21 -> Canaryseed | B11: ='Data (HIDE)'!AC21 -> 282.3172265 | C11: ='Data (HIDE)'!AJ21 -> 420 | D11: ='Data (HIDE)'!AV21 -> 1.487688177 | E11: ='Data (HIDE)'!AW21 -> 0.9261005301 | F11: ='Data (HIDE)'!AS21 -> 0.05307645796 | G11: ='Data (HIDE)'!AT21 -> 0.1962131848 | L11: ='Data (HIDE)'!AX21 -> 1.196172249
A12: ='Data (HIDE)'!B22 -> Lentil | B12: ='Data (HIDE)'!AC22 -> 246.6786613 | C12: ='Data (HIDE)'!AJ22 -> 250 | D12: ='Data (HIDE)'!AV22 -> 1.013464232 | E12: ='Data (HIDE)'!AW22 -> 0.5982637222 | F12: ='Data (HIDE)'!AS22 -> 0.04439932796 | G12: ='Data (HIDE)'!AT22 -> 0.130718435 | L12: ='Data (HIDE)'!AX22 -> 1.130766911

Sheet Data (HIDE) (hidden)
B1: Annual Update Steps: | L1: To Do List:
B2: copy & paste 'Green' data blocks below from annual MASC cost and coverage information spreadsheet.
B3: enter COP yields into 'yellow' data block below | BD3: =V14&" Yield per Acre - "&Introduction!I11 -> Manitoba Yield per Acre - 2022
B4: enter MASC insured values & COP yields into 'yellow' data blocks below
B5: enter MASC SAR acres into data block below and change formula for 5 year average.
B6: select yellow rows and sort
B11: *****Re-sort Yellow rows based on column I for 5yr Avg Ac Ranking or column K for 2018 Ranking ****** *****SUMMARY will AUTO update!! ****** | O11: ****sort on column F to reset to original listing ****
W12: Hail Ins. coverage / acre
B13: Manitoba | W13: 300
B14: 80% Insured Value | E14: **Change Mkt Prices Here*** | J14: **Change yr for Risk pg*** | V14: =B13 -> Manitoba | W14: =B13 -> Manitoba | AJ14: =V14 -> Manitoba | AV14: AgriInsurance Insured Value
C15: Yield | D15: Unit | E15: Price | F15: Default RANK | G15: Manual Rank | H15: 5 yr Avg Acres | I15: 5 yr Avg Acres RANK | J15: 2021 Acres | K15: 2020 Acres RANK | L15: Seed & Treatment | M15: Fertilizer | N15: Herbicide | O15: Fungicide | P15: Insecticide | Q15: Fuel | R15: Machinery Operating | S15: Machinery Lease | T15: Rental and Custom | U15: Labour | V15: Crop Insurance | W15: Hail Insurance | X15: Other Costs | Y15: Land Taxes | Z15: Storage Costs | AA15: Drying Costs | AB15: Interest on Operating | AC15: Total Operating | AD15: Land Investment Costs | AE15: Machinery Costs | AF15: Total Fixed | AG15: Total Operating & Fixed | AH15: Labour | AI15: Total Costs | AJ15: Insured value | AK15: % Premium | AL15: Gross Revenue | AM15: Margin Over Total Costs (Net Profit) | AN15: Operating Expense Ratio | AO15: B/E Price Over Total Costs | AP15: Breakeven Yield Over Total Costs | AQ15: B/E Yield Risk Ratio | AR15: AgriInsurance Risk Ratio | AS15: Estimated ROA (Reward) | AT15: Estimated ROI (Reward) | AV15: % of Op Cost | AW15: % of Total Costs | AX15: Target or Average Yield as % of B/E Yield
B16: Black Bean | C16: =HLOOKUP($B$13,$C$46:$G$53,3,FALSE) -> 1700 | D16: lb | E16: 0.45 | F16: 2 | G16: 1 | H16: =$C$38 -> 25222.6 | I16: =RANK(H16,$H$16:$H$22) -> 1 | J16: =$D38 -> 27846 | K16: =RANK(J16,$J$16:$J$22) -> 1 | L16: ='Seed, Fertilizer & Chemical'!J5 -> 96.25 | M16: ='Seed, Fertilizer & Chemical'!O27 -> 103.1315311 | N16: ='Seed, Fertilizer & Chemical'!D46 -> 77.02 | O16: ='Seed, Fertilizer & Chemical'!F46 -> 40.5 | P16: ='Seed, Fertilizer & Chemical'!G46 -> 0 | Q16: ='Op. Cost Input'!D14 -> 23.88076442 | R16: ='Op. Cost Input'!$D$6 -> 20 | S16: ='Fixed Cost Input'!$I$20 -> 2.88 | T16: ='Op. Cost Input'!N14 -> 0 | U16: ='Op. Cost Input'!$D$5*'Op. Cost Input'!$C13 -> 5 | V16: ='Op. Cost Input'!E14 -> 33.5 | W16: ='Op. Cost Input'!F14 -> 16.5375 | X16: ='Op. Cost Input'!$D$7 -> 17.75 | Y16: ='Op. Cost Input'!$D$4 -> 17.5 | Z16: ='Op. Cost Input'!H14 -> 4.623808518 | AA16: =IF('Op. Cost Input'!G14="-",0,'Op. Cost Input'!G14) -> 0 | AB16: =ROUND(SUM(L16:AA16)/2*('Op. Cost Input'!$D$3),2) -> 11.46 | AC16: =SUM(L16:AB16) -> 470.0336041 | AD16: ='Fixed Cost Input'!$D$14 -> 78.187794 | AE16: ='Fixed Cost Input'!$I$17+'Fixed Cost Input'!$J$17 -> 76.17059425 | AF16: =SUM(AD16:AE16) -> 154.3583882 | AG16: =SUM(AF16+AC16) -> 624.3919923 | AH16: ='Op. Cost Input'!$D$5*'Op. Cost Input'!$D$9 -> 25 | AI16: =SUM(AG16+AH16) -> 649.3919923 | AJ16: =IF($B$14="80% Insured Value",HLOOKUP($V$14,$D$57:$H$64,3,FALSE),IF($B$14="70% Insured Value",HLOOKUP($V$14,#REF!,3,FALSE),HLOOKUP($V$14,#REF!,3,FALSE))) -> 520 | AK16: =SUM(V16/AJ16) -> 0.06442307692 | AL16: =SUM(C16*E16) -> 765 | AM16: =SUM(AL16-AI16) -> 115.6080077 | AN16: =SUM(AC16/AL16) -> 0.6144230119 | AO16: =SUM(AI16/C16) -> 0.3819952896 | AP16: =ROUND(AI16/E16,1) -> 1443.1 | AQ16: =SUM(C16/AP16) -> 1.178019541 | AR16: =SUM(AJ16/AC16) -> 1.10630388 | AS16: =SUM((AL16-AC16-AH16-('Fixed Cost Input'!$I$15+'Fixed Cost Input'!$J$15))/(('Fixed Cost Input'!$D$4)+'Fixed Cost Input'!$I$5+'Fixed Cost Input'!$J$5)) -> 0.06110262523 | AT16: =AM16/AI16 -> 0.1780249973 | AV16: =SUM(AJ16/AC16) -> 1.10630388 | AW16: =SUM(AJ16/AI16) -> 0.8007490178 | AX16: =C16/AP16 -> 1.178019541 | BO16: =SUM(C16*E16) -> 765
B17: Hempseed | C17: =HLOOKUP($B$13,$C$46:$G$53,2,FALSE) -> 750 | D17: lb | E17: 0.9 | F17: 1 | G17: 2 | H17: =$C$37 -> 12974 | I17: 2 | J17: =$D$37 -> 6131 | K17: 4 | L17: ='Seed, Fertilizer & Chemical'!J4 -> 58.75 | M17: ='Seed, Fertilizer & Chemical'!O26 -> 103.1315311 | N17: ='Seed, Fertilizer & Chemical'!D45 -> 47.54 | O17: ='Seed, Fertilizer & Chemical'!F45 -> 0 | P17: ='Seed, Fertilizer & Chemical'!G45 -> 0 | Q17: ='Op. Cost Input'!D13 -> 24.45356148 | R17: ='Op. Cost Input'!$D$6 -> 20 | S17: ='Fixed Cost Input'!$I$20 -> 2.88 | T17: ='Op. Cost Input'!N13 -> 0 | U17: ='Op. Cost Input'!$D$5*'Op. Cost Input'!$C14 -> 5 | V17: ='Op. Cost Input'!E13 -> 36.75 | W17: ='Op. Cost Input'!F13 -> 18.9 | X17: ='Op. Cost Input'!$D$7 -> 17.75 | Y17: ='Op. Cost Input'!$D$4 -> 17.5 | Z17: ='Op. Cost Input'!H13 -> 2.781702986 | AA17: =IF('Op. Cost Input'!G13="-",0,'Op. Cost Input'!G13) -> 0 | AB17: =ROUND(SUM(L17:AA17)/2*('Op. Cost Input'!$D$3),2) -> 8.89 | AC17: 364.3267956 | AD17: ='Fixed Cost Input'!$D$14 -> 78.187794 | AE17: ='Fixed Cost Input'!$I$17 -> 68.00945915 | AF17: 146.1972531 | AG17: 510.5240488 | AH17: ='Op. Cost Input'!$D$5*'Op. Cost Input'!$D$9 -> 25 | AI17: 535.5240488 | AJ17: =IF($B$14="80% Insured Value",HLOOKUP($V$14,$D$57:$H$64,2,FALSE),IF($B$14="70% Insured Value",HLOOKUP($V$14,#REF!,2,FALSE),HLOOKUP($V$14,#REF!,2,FALSE))) -> 460 | AK17: 0.07989130435 | AL17: 675 | AM17: 139.4759512 | AN17: 0.5397434009 | AO17: 0.714032065 | AP17: 595 | AQ17: 1.260504202 | AR17: 1.262602711 | AS17: =SUM((AL17-AC17-AH17-'Fixed Cost Input'!$I$15)/(('Fixed Cost Input'!$D$4)+'Fixed Cost Input'!$I$5+'Fixed Cost Input'!$J$5)) -> 0.06582656677 | AT17: 0.2604475963 | AV17: 1.262602711 | AW17: 0.8589716952 | AX17: 1.260504202 | BO17: 675
B18: Kidney Bean | C18: =HLOOKUP($B$13,$C$46:$G$53,4,FALSE) -> 1400 | D18: lb | E18: 0.49 | F18: 3 | G18: 3 | H18: =$C$39 -> 10570.2 | I18: 3 | J18: =$D$39 -> 9454 | K18: 2 | L18: ='Seed, Fertilizer & Chemical'!J6 -> 229.9 | M18: ='Seed, Fertilizer & Chemical'!O28 -> 103.1315311 | N18: ='Seed, Fertilizer & Chemical'!D47 -> 77.02 | O18: ='Seed, Fertilizer & Chemical'!F47 -> 40.5 | P18: ='Seed, Fertilizer & Chemical'!G47 -> 0 | Q18: ='Op. Cost Input'!D15 -> 23.31945305 | R18: ='Op. Cost Input'!$D$6 -> 20 | S18: ='Fixed Cost Input'!$I$20 -> 2.88 | T18: ='Op. Cost Input'!N15 -> 0 | U18: ='Op. Cost Input'!$D$5*'Op. Cost Input'!$C15 -> 5 | V18: ='Op. Cost Input'!E15 -> 48.25 | W18: ='Op. Cost Input'!F15 -> 16.5375 | X18: ='Op. Cost Input'!$D$7 -> 17.75 | Y18: ='Op. Cost Input'!$D$4 -> 17.5 | Z18: ='Op. Cost Input'!H15 -> 3.807842309 | AA18: =IF('Op. Cost Input'!G15="-",0,'Op. Cost Input'!G15) -> 0 | AB18: =ROUND(SUM(L18:AA18)/2*('Op. Cost Input'!$D$3),2) -> 15.14 | AC18: 620.7363265 | AD18: ='Fixed Cost Input'!$D$14 -> 78.187794 | AE18: ='Fixed Cost Input'!$I$17+'Fixed Cost Input'!$J$17 -> 76.17059425 | AF18: 154.3583882 | AG18: 775.0947147 | AH18: ='Op. Cost Input'!$D$5*'Op. Cost Input'!$D$9 -> 25 | AI18: 800.0947147 | AJ18: =IF($B$14="80% Insured Value",HLOOKUP($V$14,$D$57:$H$64,4,FALSE),IF($B$14="70% Insured Value",HLOOKUP($V$14,#REF!,4,FALSE),HLOOKUP($V$14,#REF!,5,FALSE))) -> 610 | AK18: 0.07909836066 | AL18: 686 | AM18: -114.0947147 | AN18: 0.9048634497 | AO18: 0.5714962248 | AP18: 1632.8 | AQ18: 0.8574228319 | AR18: 0.9827038856 | AS18: =SUM((AL18-AC18-AH18-('Fixed Cost Input'!$I$15+'Fixed Cost Input'!$J$15))/(('Fixed Cost Input'!$D$4)+'Fixed Cost Input'!$I$5+'Fixed Cost Input'!$J$5)) -> 0.003096887247 | AT18: -0.1426015104 | AV18: 0.9827038856 | AW18: 0.7624097357 | AX18: 0.8574228319 | BO18: 686
B19: Fababean | C19: =HLOOKUP($B$13,$C$46:$G$53,7,FALSE) -> 2300 | D19: lb | E19: 0.2 | F19: 6 | G19: 4 | H19: =$C$42 -> 6828.4 | I19: 4 | J19: =$D$42 -> 5206 | K19: 5 | L19: ='Seed, Fertilizer & Chemical'!J9 -> 39.6 | M19: ='Seed, Fertilizer & Chemical'!O31 -> 49.81571167 | N19: ='Seed, Fertilizer & Chemical'!D50 -> 15.5 | O19: ='Seed, Fertilizer & Chemical'!F50 -> 0 | P19: ='Seed, Fertilizer & Chemical'!G50 -> 0 | Q19: ='Op. Cost Input'!D18 -> 22.12838716 | R19: ='Op. Cost Input'!$D$6 -> 20 | S19: ='Fixed Cost Input'!$I$20 -> 2.88 | T19: ='Op. Cost Input'!N18 -> 0 | U19: ='Op. Cost Input'!$D$5*'Op. Cost Input'!$C16 -> 5 | V19: ='Op. Cost Input'!E18 -> 36.75 | W19: ='Op. Cost Input'!F18 -> 16.5375 | X19: ='Op. Cost Input'!$D$7 -> 17.75 | Y19: ='Op. Cost Input'!$D$4 -> 17.5 | Z19: ='Op. Cost Input'!H18 -> 6.255740936 | AA19: =IF('Op. Cost Input'!G18="-",0,'Op. Cost Input'!G18) -> 0 | AB19: =ROUND(SUM(L19:AA19)/2*('Op. Cost Input'!$D$3),2) -> 6.24 | AC19: 255.9573398 | AD19: ='Fixed Cost Input'!$D$14 -> 78.187794 | AE19: ='Fixed Cost Input'!$I$17 -> 68.00945915 | AF19: 146.1972531 | AG19: 402.1545929 | AH19: ='Op. Cost Input'!$D$5*'Op. Cost Input'!$D$9 -> 25 | AI19: 427.1545929 | AJ19: =IF($B$14="80% Insured Value",HLOOKUP($V$14,$D$57:$H$64,7,FALSE),IF($B$14="70% Insured Value",HLOOKUP($V$14,#REF!,7,FALSE),HLOOKUP($V$14,#REF!,7,FALSE))) -> 200 | AK19: 0.18375 | AL19: 460 | AM19: 32.84540709 | AN19: 0.5564289995 | AO19: 0.1857193882 | AP19: 2135.8 | AQ19: 1.076879858 | AR19: 0.7813802104 | AS19: =SUM((AL19-AC19-AH19-'Fixed Cost Input'!$I$15)/(('Fixed Cost Input'!$D$4)+'Fixed Cost Input'!$I$5+'Fixed Cost Input'!$J$5)) -> 0.03889966168 | AT19: 0.07689348923 | AV19: 0.7813802104 | AW19: 0.4682145605 | AX19: 1.076879858 | BO19: 460
B20: Buckwheat | C20: =HLOOKUP($B$13,$C$46:$G$53,5,FALSE) -> 15 | D20: bu | E20: 17.5 | F20: 4 | G20: 5 | H20: =$C$40 -> 5471.2 | I20: 5 | J20: =$D$40 -> 4416 | K20: 6 | L20: ='Seed, Fertilizer & Chemical'!J7 -> 25 | M20: ='Seed, Fertilizer & Chemical'!O29 -> 55.55370262 | N20: ='Seed, Fertilizer & Chemical'!D48 -> 6.13 | O20: ='Seed, Fertilizer & Chemical'!F48 -> 0 | P20: ='Seed, Fertilizer & Chemical'!G48 -> 0 | Q20: ='Op. Cost Input'!D16 -> 21.00393411 | R20: ='Op. Cost Input'!$D$6 -> 20 | S20: ='Fixed Cost Input'!$I$20 -> 2.88 | T20: ='Op. Cost Input'!N16 -> 0 | U20: ='Op. Cost Input'!$D$5*'Op. Cost Input'!$C17 -> 5 | V20: ='Op. Cost Input'!E16 -> 19 | W20: ='Op. Cost Input'!F16 -> 23.625 | X20: ='Op. Cost Input'!$D$7 -> 17.75 | Y20: ='Op. Cost Input'!$D$4 -> 17.5 | Z20: ='Op. Cost Input'!H16 -> 2.447898627 | AA20: =IF('Op. Cost Input'!G16="-",0,'Op. Cost Input'!G16) -> 0 | AB20: =ROUND(SUM(L20:AA20)/2*('Op. Cost Input'!$D$3),2) -> 5.4 | AC20: 221.2905354 | AD20: ='Fixed Cost Input'!$D$14 -> 78.187794 | AE20: ='Fixed Cost Input'!$I$17 -> 68.00945915 | AF20: 146.1972531 | AG20: 367.4877885 | AH20: ='Op. Cost Input'!$D$5*'Op. Cost Input'!$D$9 -> 25 | AI20: 392.4877885 | AJ20: =IF($B$14="80% Insured Value",HLOOKUP($V$14,$D$57:$H$64,5,FALSE),IF($B$14="70% Insured Value",HLOOKUP($V$14,#REF!,5,FALSE),HLOOKUP($V$14,#REF!,5,FALSE))) -> 180 | AK20: 0.1055555556 | AL20: 262.5 | AM20: -129.9877885 | AN20: 0.8430115632 | AO20: 26.16585257 | AP20: 22.4 | AQ20: 0.6696428571 | AR20: 0.8134102966 | AS20: =SUM((AL20-AC20-AH20-'Fixed Cost Input'!$I$15)/(('Fixed Cost Input'!$D$4)+'Fixed Cost Input'!$I$5+'Fixed Cost Input'!$J$5)) -> -0.00221983216 | AT20: -0.331189383 | AV20: 0.8134102966 | AW20: 0.4586129945 | AX20: 0.6696428571 | BO20: 262.5
B21: Canaryseed | C21: =HLOOKUP($B$13,$C$46:$G$53,6,FALSE) -> 1550 | D21: lb | E21: 0.35 | F21: 5 | G21: 6 | H21: =$C$41 -> 4227.8 | I21: 6 | J21: =$D$41 -> 6979 | K21: 3 | L21: ='Seed, Fertilizer & Chemical'!J8 -> 33 | M21: ='Seed, Fertilizer & Chemical'!O30 -> 89.24310549 | N21: ='Seed, Fertilizer & Chemical'!D49 -> 14.42 | O21: ='Seed, Fertilizer & Chemical'!F49 -> 13.75 | P21: ='Seed, Fertilizer & Chemical'!G49 -> 0 | Q21: ='Op. Cost Input'!D17 -> 23.37513048 | R21: ='Op. Cost Input'!$D$6 -> 20 | S21: ='Fixed Cost Input'!$I$20 -> 2.88 | T21: ='Op. Cost Input'!N17 -> 0 | U21: ='Op. Cost Input'!$D$5*'Op. Cost Input'!$C18 -> 5 | V21: ='Op. Cost Input'!E17 -> 24 | W21: ='Op. Cost Input'!F17 -> 9.45 | X21: ='Op. Cost Input'!$D$7 -> 17.75 | Y21: ='Op. Cost Input'!$D$4 -> 17.5 | Z21: ='Op. Cost Input'!H17 -> 5.058990496 | AA21: =IF('Op. Cost Input'!G17="-",0,'Op. Cost Input'!G17) -> 0 | AB21: =ROUND(SUM(L21:AA21)/2*('Op. Cost Input'!$D$3),2) -> 6.89 | AC21: 282.3172265 | AD21: ='Fixed Cost Input'!$D$14 -> 78.187794 | AE21: ='Fixed Cost Input'!$I$17 -> 68.00945915 | AF21: 146.1972531 | AG21: 428.5144796 | AH21: ='Op. Cost Input'!$D$5*'Op. Cost Input'!$D$9 -> 25 | AI21: 453.5144796 | AJ21: =IF($B$14="80% Insured Value",HLOOKUP($V$14,$D$57:$H$64,6,FALSE),IF($B$14="70% Insured Value",HLOOKUP($V$14,#REF!,6,FALSE),HLOOKUP($V$14,#REF!,6,FALSE))) -> 420 | AK21: 0.05714285714 | AL21: 542.5 | AM21: 88.98552039 | AN21: 0.5204004175 | AO21: 0.2925899868 | AP21: 1295.8 | AQ21: 1.196172249 | AR21: 1.487688177 | AS21: =SUM((AL21-AC21-AH21-'Fixed Cost Input'!$I$15)/(('Fixed Cost Input'!$D$4)+'Fixed Cost Input'!$I$5+'Fixed Cost Input'!$J$5)) -> 0.05307645796 | AT21: 0.1962131848 | AV21: 1.487688177 | AW21: 0.9261005301 | AX21: 1.196172249 | BO21: 542.5
B22: Lentil | C22: =HLOOKUP($B$13,$C$46:$G$53,8,FALSE) -> 1125 | D22: lb | E22: 0.42 | F22: 7 | G22: 7 | H22: =$C$43 -> 1899.8 | I22: 7 | J22: =$D$43 -> 1070 | K22: 7 | L22: ='Seed, Fertilizer & Chemical'!J10 -> 70 | M22: ='Seed, Fertilizer & Chemical'!O32 -> 25.62387037 | N22: ='Seed, Fertilizer & Chemical'!D51 -> 15.5 | O22: ='Seed, Fertilizer & Chemical'!F51 -> 13.88 | P22: ='Seed, Fertilizer & Chemical'!G51 -> 0 | Q22: ='Op. Cost Input'!D19 -> 19.92991763 | R22: ='Op. Cost Input'!$D$6 -> 20 | S22: ='Fixed Cost Input'!$I$20 -> 2.88 | T22: ='Op. Cost Input'!N19 -> 0 | U22: ='Op. Cost Input'!$D$5*'Op. Cost Input'!$C19 -> 5 | V22: ='Op. Cost Input'!E19 -> 17.25 | W22: ='Op. Cost Input'!F19 -> 12.285 | X22: ='Op. Cost Input'!$D$7 -> 17.75 | Y22: ='Op. Cost Input'!$D$4 -> 17.5 | Z22: ='Op. Cost Input'!H19 -> 3.059873284 | AA22: =IF('Op. Cost Input'!G19="-",0,'Op. Cost Input'!G19) -> 0 | AB22: =ROUND(SUM(L22:AA22)/2*('Op. Cost Input'!$D$3),2) -> 6.02 | AC22: 246.6786613 | AD22: ='Fixed Cost Input'!$D$14 -> 78.187794 | AE22: ='Fixed Cost Input'!$I$17 -> 68.00945915 | AF22: 146.1972531 | AG22: 392.8759144 | AH22: ='Op. Cost Input'!$D$5*'Op. Cost Input'!$D$9 -> 25 | AI22: 417.8759144 | AJ22: =IF($B$14="80% Insured Value",HLOOKUP($V$14,$D$57:$H$64,8,FALSE),IF($B$14="70% Insured Value",HLOOKUP($V$14,#REF!,8,FALSE),HLOOKUP($V$14,#REF!,8,FALSE))) -> 250 | AK22: 0.069 | AL22: 472.5 | AM22: 54.62408557 | AN22: 0.5220712408 | AO22: 0.3714452573 | AP22: 994.9 | AQ22: 1.130766911 | AR22: 1.013464232 | AS22: =SUM((AL22-AC22-AH22-'Fixed Cost Input'!$I$15)/(('Fixed Cost Input'!$D$4)+'Fixed Cost Input'!$I$5+'Fixed Cost Input'!$J$5)) -> 0.04439932796 | AT22: 0.130718435 | AV22: 1.013464232 | AW22: 0.5982637222 | AX22: 1.130766911 | BO22: 472.5
B25: MASC Seeded Acreage SAR - Market Variety Share Report
C26: 5yr | D26: 2021 | E26: 2020 | F26: 2019 | G26: 2018 | H26: 2017 | I26: 2016 | J26: 2015 | K26: 2014 | L26: 2013 | M26: 2012 | S26: $/MT | T26: unit | U26: $/unit
B27: Hempseed | C27: =AVERAGE(D27:H27) -> 12974 | D27: 6131 | E27: 11308 | F27: 10009 | G27: 10126 | H27: 27296 | I27: 14491 | J27: 21220 | K27: 17453 | L27: 11297 | M27: 14403 | R27: Hempseed | S27: 1653 | T27: 2204.62 | U27: =SUM(S27/T27) -> 0.7497890793
B28: Black Bean | C28: =AVERAGE(D28:H28) -> 25222.6 | D28: 27846 | E28: 20940 | F28: 27308 | G28: 27610 | H28: 22409 | I28: 17512 | J28: 20302 | K28: 14921 | L28: 9535 | M28: 14498 | R28: Black Bean | S28: 725 | T28: 2204.62 | U28: 0.3288548593
B29: Kidney Bean | C29: 10570.2 | D29: 9454 | E29: =12402 -> 12402 | F29: 12358 | G29: 10501 | H29: 8136 | I29: 11906 | J29: 16604 | K29: 17210 | L29: 8734 | M29: 9319 | R29: Kidney Bean | S29: 925 | T29: 2204.62 | U29: 0.4195734412
B30: Buckwheat | C30: 5471.2 | D30: =4416 -> 4416 | E30: 5681 | F30: 6766 | G30: 4848 | H30: 5645 | I30: 11083 | J30: 8921 | K30: 2599 | L30: 5094 | M30: 11535 | R30: Buckwheat | S30: 645 | T30: 50 | U30: 12.9
B31: Canaryseed | C31: 4227.8 | D31: 6979 | E31: 5120 | F31: 3179 | G31: 1578 | H31: 4283 | I31: 7635 | J31: 9449 | K31: 2009 | L31: 6422 | M31: 12135 | R31: Canaryseed | S31: 475 | T31: 2204.62 | U31: 0.215456632
B32: Fababean | C32: 6828.4 | D32: 5206 | E32: 6679 | F32: 8052 | G32: 5826 | H32: 8379 | I32: 9596 | J32: 9040 | K32: 3468 | L32: 2377 | M32: 3463 | R32: Fababean | S32: 185 | T32: 2204.62 | U32: 0.08391468825
B33: Lentil | C33: 1899.8 | D33: 1070 | E33: 2522 | F33: 1542 | G33: 1684 | H33: 2681 | I33: 9957 | J33: 1707 | K33: 0 | L33: 533 | M33: 877 | R33: Lentil | S33: 400 | T33: 2204.62 | U33: 0.1814371638
B35: MASC Seeded Acreage (for COP)
C36: 5yr | D36: 2021 | E36: 2020 | F36: 2019 | G36: 2018 | H36: 2017 | I36: 2016 | J36: 2015 | K36: 2014 | L36: 2013 | M36: 2012
B37: Hempseed | C37: =AVERAGE(D37:H37) -> 12974 | D37: =D27 -> 6131 | E37: 11308 | F37: 10009 | G37: 10126 | H37: 27296 | I37: 14491 | J37: 21220 | K37: 17453 | L37: 11297 | M37: 14403
B38: Black Bean | C38: =AVERAGE(D38:H38) -> 25222.6 | D38: =D28 -> 27846 | E38: 20940 | F38: 27308 | G38: 27610 | H38: 22409 | I38: 17512 | J38: 20302 | K38: 14921 | L38: 9535 | M38: 14498
B39: Kidney Bean | C39: 10570.2 | D39: =D29 -> 9454 | E39: 12402 | F39: 12358 | G39: 10501 | H39: 8136 | I39: 11906 | J39: 16604 | K39: 17210 | L39: 8734 | M39: 9319
B40: Buckwheat | C40: 5471.2 | D40: =D30 -> 4416 | E40: 5681 | F40: 6766 | G40: 4848 | H40: 5645 | I40: 11083 | J40: 8921 | K40: 2599 | L40: 5094 | M40: 11535
B41: Canaryseed | C41: 4227.8 | D41: =D31 -> 6979 | E41: 5120 | F41: 3179 | G41: 1578 | H41: 4283 | I41: 7635 | J41: 9449 | K41: 2009 | L41: 6422 | M41: 12135
B42: Fababean | C42: 6828.4 | D42: =D32 -> 5206 | E42: 6679 | F42: 8052 | G42: 5826 | H42: 8379 | I42: 9596 | J42: 9040 | K42: 3468 | L42: 2377 | M42: 3463
B43: Lentil | C43: 1899.8 | D43: =D33 -> 1070 | E43: 2522 | F43: 1542 | G43: 1684 | H43: 2681 | I43: 9957 | J43: 1707 | K43: 0 | L43: =L33 -> 533 | M43: =M33 -> 877
B45: 2021 MASC data | C45: COP
B46: Expected Yield 'D' | C46: Manitoba | D46: RA#2 | E46: RA#5 | F46: RA#6 | G46: RA#12 | H46: Avg. | N46: 80% Insured Value
B47: Hempseed | C47: 750 | D47: 688 | E47: 688 | F47: 688 | G47: 688 | H47: 688 | N47: 70% Insured Value
B48: Black Bean | C48: 1700 | D48: 1673 | E48: 1673 | F48: 1338 | G48: 1673 | H48: 1589.25 | N48: 50% Insured Value
B49: Kidney Bean | C49: 1400 | D49: 1495 | E49: 1495 | F49: 1195 | G49: 1495 | H49: 1420
B50: Buckwheat | C50: 15 | D50: 13.4 | E50: 13.4 | F50: 13.4 | G50: 13.4 | H50: 13.4
B51: Canaryseed | C51: 1550 | D51: 1565 | E51: 1565 | F51: 1565 | G51: 1565 | H51: 1565
B52: Fababean | C52: 2300 | D52: 2054 | E52: 2054 | F52: 2054 | G52: 2054 | H52: 2054
B53: Lentil | C53: 1125 | D53: 1105 | E53: 1105 | F53: 1105 | G53: 1105 | H53: 1105
C55: **Mkt Prices are Changed E16 to E22 above***
B56: 80% Insured Value | C56: 2021 | D56: Avg 2,5,6,12
C57: ins.$/bu | D57: Manitoba | E57: RA#2 | F57: RA#5 | G57: RA#6 | H57: RA#12
B58: Hempseed | C58: 0.69 | D58: 460 | E58: 379.776 | F58: 379.776 | G58: 379.776 | H58: 379.776 | K58: 379.776 | L58: 1.2 | M58: =ROUND(K58*L58,-1) -> 460
B59: Black Bean | C59: 0.35 | D59: 520 | E59: 455.056 | F59: 455.056 | G59: 363.936 | H59: 455.056 | K59: 432.276 | L59: 1.2 | M59: =ROUND(K59*L59,-1) -> 520
B60: Kidney Bean | C60: 0.45 | D60: 610 | E60: 538.2 | F60: 538.2 | G60: 430.2 | H60: 538.2 | K60: 511.2 | L60: 1.2 | M60: 610
B61: Buckwheat | C61: 14.04 | D61: 180 | E61: 150.5088 | F61: 150.5088 | G61: 150.5088 | H61: 150.5088 | K61: 150.5088 | L61: 1.2 | M61: 180
B62: Canaryseed | C62: 0.28 | D62: 420 | E62: 350.56 | F62: 350.56 | G62: 350.56 | H62: 350.56 | K62: 350.56 | L62: 1.2 | M62: 420
B63: Fababean | C63: 0.1 | D63: 200 | E63: 164.32 | F63: 164.32 | G63: 164.32 | H63: 164.32 | K63: 164.32 | L63: 1.2 | M63: 200
B64: Lentil | C64: 0.4 | D64: 250 | E64: 212.16 | F64: 212.16 | G64: 212.16 | H64: 212.16 | K64: 212.16 | L64: 1.2 | M64: 250
C67: Avg 2,5,6,12
B68: 80% Crop | C68: Manitoba | D68: RA#2 | E68: RA#5 | F68: RA#6 | G68: RA#12 | H68: Avg.
B69: Hempseed | C69: 36.123 | D69: 30.06 | E69: 30.24 | F69: 30.66 | G69: 29.45 | H69: 30.1025 | K69: 30.1025 | L69: 1.2 | M69: =K69*L69 -> 36.123
B70: Black Bean | C70: 32.931 | D70: 27.39 | E70: 27.57 | F70: 27.99 | G70: 26.82 | H70: 27.4425 | K70: 27.4425 | L70: 1.2 | M70: =K70*L70 -> 32.931
B71: Kidney Bean | C71: 47.592 | D71: 39.48 | E71: 39.92 | F71: 40.4 | G71: 38.84 | H71: 39.66 | K71: 39.66 | L71: 1.2 | M71: 47.592
B72: Buckwheat | C72: 18.576 | D72: 15.41 | E72: 15.58 | F72: 15.76 | G72: 15.17 | H72: 15.48 | K72: 15.48 | L72: 1.2 | M72: 18.576
B73: Canaryseed | C73: 23.457 | D73: 19.45 | E73: 19.72 | F73: 19.85 | G73: 19.17 | H73: 19.5475 | K73: 19.5475 | L73: 1.2 | M73: 23.457
B74: Fababean | C74: 36.123 | D74: 30.06 | E74: 30.24 | F74: 30.66 | G74: 29.45 | H74: 30.1025 | K74: 30.1025 | L74: 1.2 | M74: 36.123
B75: Lentil | C75: 16.632 | D75: 10.43 | E75: 15.01 | F75: 15.3 | G75: 14.7 | H75: 13.86 | K75: 13.86 | L75: 1.2 | M75: 16.632
B77: Base EMI premium / acre ($50) | D77: 0.54 | F77: 200
F78: 250
B79: Hail Ins. coverage / acre | F79: 300
C81: Rate | D81: Avg 2,5,6,12 | E81: Cost per Acre
B82: HAIL Ins. Costs | C82: Factor | D82: Manitoba | E82: RA#2 | F82: RA#5 | G82: RA#6 | H82: RA#12
B83: =W13 -> 300 | E83: 3.3 | F83: 3.8 | G83: 3 | H83: 2.5
B84: Hempseed | C84: 2 | D84: =AVERAGE(E84,F84,G84,H84) -> 18.9 | E84: =(($E$83*$C84)/100)*$W$13 -> 19.8 | F84: =(($F$83*$C84)/100)*$W$13 -> 22.8 | G84: =(($G$83*$C84)/100)*$W$13 -> 18 | H84: =(($H$83*$C84)/100)*$W$13 -> 15
B85: Black Bean | C85: 1.75 | D85: 16.5375 | E85: =(($E$83*$C85)/100)*$W$13 -> 17.325 | F85: 19.95 | G85: 15.75 | H85: 13.125
B86: Kidney Bean | C86: 1.75 | D86: 16.5375 | E86: 17.325 | F86: 19.95 | G86: 15.75 | H86: 13.125
B87: Buckwheat | C87: 2.5 | D87: 23.625 | E87: 24.75 | F87: 28.5 | G87: 22.5 | H87: 18.75
B88: Canaryseed | C88: 1 | D88: 9.45 | E88: 9.9 | F88: 11.4 | G88: 9 | H88: 7.5
B89: Fababean | C89: 1.75 | D89: 16.5375 | E89: 17.325 | F89: 19.95 | G89: 15.75 | H89: 13.125
B90: Lentil | C90: 1.3 | D90: 12.285 | E90: 12.87 | F90: 14.82 | G90: 11.7 | H90: 9.75
B93: Data Source – MASC Harvest Production Reports (2010-2015)
D94: Crop planted
B95: Stubble | D95: Wheat - Hard Red Spring | E95: Wheat - Northern Hard Red | F95: Wheat - Special Purpose | G95: Wheat - Prairie Spring | H95: Wheat - Winter | I95: Oats | J95: Barley | K95: Canola | L95: Flaxseed | M95: Peas | N95: Soybeans | O95: Beans - White | P95: Sunflower Oil | Q95: Sunflower Confection | R95: Corn
B96: Wheat - Hard Red Spring | C96: 2 | D96: 85 | E96: 85 | F96: 85 | G96: 85 | H96: 84 | I96: 98 | J96: 96 | K96: 102 | L96: 105 | M96: 103 | N96: 101 | O96: 106 | P96: 101 | Q96: 101 | R96: 98
B97: Wheat - Northern Hard Red | C97: 3 | D97: 85 | E97: 85 | F97: 85 | G97: 85 | H97: 84 | I97: 98 | J97: 96 | K97: 102 | L97: 105 | M97: 103 | N97: 101 | O97: 106 | P97: 101 | Q97: 101 | R97: 98
B98: Wheat - Special Purpose | C98: 4 | D98: 85 | E98: 85 | F98: 85 | G98: 85 | H98: 84 | I98: 98 | J98: 96 | K98: 102 | L98: 105 | M98: 103 | N98: 101 | O98: 106 | P98: 101 | Q98: 101 | R98: 98
B99: Wheat - Prairie Spring | C99: 5 | D99: 85 | E99: 85 | F99: 85 | G99: 85 | H99: 84 | I99: 98 | J99: 96 | K99: 102 | L99: 105 | M99: 103 | N99: 101 | O99: 106 | P99: 101 | Q99: 101 | R99: 98
B100: Wheat - Winter | C100: 6 | D100: 75 | E100: 75 | F100: 75 | G100: 75 | H100: 83 | I100: 97 | J100: 105 | K100: 98 | L100: 94 | M100: 112 | N100: 105 | O100: 83 | P100: 87 | Q100: 87 | R100: 74
B101: Oats | C101: 7 | D101: 93 | E101: 93 | F101: 93 | G101: 93 | H101: 86 | I101: 77 | J101: 78 | K101: 95 | L101: 92 | M101: 94 | N101: 100 | O101: 77 | P101: 104 | Q101: 104 | R101: 99
B102: Barley | C102: 8 | D102: 90 | E102: 90 | F102: 90 | G102: 90 | H102: 91 | I102: 90 | J102: 85 | K102: 104 | L102: 104 | M102: 93 | N102: 101 | O102: 67 | P102: 100 | Q102: 100 | R102: 92
B103: Canola | C103: 9 | D103: 101 | E103: 101 | F103: 101 | G103: 101 | H103: 105 | I103: 101 | J103: 102 | K103: 86 | L103: 87 | M103: 96 | N103: 100 | O103: 99 | P103: 75 | Q103: 75 | R103: 99
B104: Flaxseed | C104: 10 | D104: 96 | E104: 96 | F104: 96 | G104: 96 | H104: 104 | I104: 97 | J104: 106 | K104: 103 | L104: 79 | M104: 86 | N104: 98 | O104: 100 | P104: 71 | Q104: 71 | R104: 78
B105: Peas | C105: 11 | D105: 101 | E105: 101 | F105: 101 | G105: 101 | H105: 82 | I105: 112 | J105: 102 | K105: 104 | L105: 145 | M105: 100 | N105: 68 | O105: 100 | P105: 100 | Q105: 100 | R105: 94
B106: Soybeans | C106: 12 | D106: 108 | E106: 108 | F106: 108 | G106: 108 | H106: 93 | I106: 108 | J106: 108 | K106: 104 | L106: 104 | M106: 96 | N106: 94 | O106: 100 | P106: 101 | Q106: 101 | R106: 103
B107: Beans - White | C107: 13 | D107: 119 | E107: 119 | F107: 119 | G107: 119 | H107: 100 | I107: 115 | J107: 114 | K107: 119 | L107: 100 | M107: 100 | N107: 107 | O107: 78 | P107: 100 | Q107: 100 | R107: 111
B108: Sunflower Oil | C108: 14 | D108: 102 | E108: 102 | F108: 102 | G108: 102 | H108: 100 | I108: 103 | J108: 103 | K108: 91 | L108: 101 | M108: 100 | N108: 93 | O108: 100 | P108: 100 | Q108: 100 | R108: 95
B109: Sunflower Confection | C109: 15 | D109: 102 | E109: 102 | F109: 102 | G109: 102 | H109: 100 | I109: 103 | J109: 103 | K109: 91 | L109: 101 | M109: 100 | N109: 93 | O109: 100 | P109: 100 | Q109: 100 | R109: 95
B110: Corn | C110: 16 | D110: 98 | E110: 98 | F110: 98 | G110: 98 | H110: 67 | I110: 111 | J110: 96 | K110: 112 | L110: 100 | M110: 100 | N110: 102 | O110: 61 | P110: 119 | Q110: 119 | R110: 89
